{"text_format":"1","workbook":"xlsx","n_sheets":20,"sheets":["I-Shift Info","PTOs","PTRD-D3-D4","Pump Info","VP1 Pump","Pump Part Numbers","REPTO","Fitting Info","I - Shift Ratio","AMT-F","Kit Contents","ES recomendations","VECU5","BBM","Early Gen II PTO Switches","D & F","Bezares","ADAPTERS","PERMCO","Allison Info"],"not_rendered":{"charts":0,"images":78,"macros":1,"external_links":1,"defined_names":11,"comments":2,"pivot_tables":0},"unopened":[],"bounds":{"document_bytes":16777216,"sheet_cells":100000,"rows_first":2000,"rows_last":500,"rows_between":2000,"halvings":0,"cell_chars":16384,"cell_head_chars":4096},"cells_cut":0,"cells_raw":0,"read":"whole","date_system":"1900"}

{"sheet":"I-Shift Info","index":0,"n_rows":1018,"n_cols":27,"rows_kept":1018,"cut":false,"hidden":false,"merged":[[55,2,55,7],[1,2,1,7],[16,2,18,3],[19,2,19,3],[15,2,15,7],[28,2,29,2],[3,6,5,7],[7,6,8,7],[53,2,53,7],[51,2,52,7],[38,2,38,7],[41,2,42,7],[39,2,40,7],[43,2,44,7],[1004,24,1004,25],[16,4,16,5],[17,4,17,5],[16,6,16,7],[17,6,17,7],[19,4,19,7],[20,2,20,7],[25,2,25,7],[32,2,33,2],[26,2,27,2],[30,2,31,2],[34,2,35,2],[36,2,37,2],[45,2,46,7],[47,2,48,7],[49,2,50,7]]}
[]
[null,null,"Engine or PTO / Pump Speed Calulator R14"]
[]
[null,null,"Engine Speed",null,null,"RPM","To Calculate PTO / Pump Speed Enter Data in White Boxes"]
[null,null,"PTO Ratio",null,null,"%"]
[null,null,"Pump / PTO Speed",null,{"$f":"IF(E4=0,0,E4*E5)","v":0},"RPM"]
[]
[null,null,"Pump / PTO Speed",null,null,"RPM","To Calculate Engine Speed Enter Data in White Boxes"]
[null,null,"PTO Ratio",null,null,"%"]
[null,null,"Engine Speed",null,{"$f":"IF(E8=0,0,E8/E9)","v":0},"RPM"]
[]
[]
[]
[]
[]
[null,null,"Speed Ratios for I-Shift Transmission Mounted PTOs "]
[null,null,"Power Take-off",null,"ATO2612 / ATO3112",null,"AT2612"]
[null,null,null,null,"OverDrive",null,"Direct"]
[null,null,null,null,"Low / N1","High / N2","Low / N1","High / N2"]
[null,null,"Sales Code / Variant"]
[null,null,"Single"]
[null,null,"T4XC1X","PTR-D",0.9,1.1499999999999999,0.7,0.9]
[null,null,"T4XA8X","PTR-F",0.9,1.1499999999999999,0.7,0.9]
[null,null,"T4XAKX","PTR-FL",0.93,1.18,0.73,0.93]
[null,null,"T4XDMX","PTR-DM",1.35,1.72,1.06,1.35]
[null,null,"Double and Triple"]
[null,null," T4XF1X","PTRD-F   Inner",0.77,0.98,0.6,0.77]
[null,null,null,"PTRD-F  Outer",1.65,2.1,1.3,1.65]
[null,null," T4XG1X","PTRD-D Inner",0.77,0.98,0.6,0.77]
[null,null,null,"PTRD-D Outer",1.65,2.1,1.3,1.65]
[null,null," T4XH1X","PTRD-D1 Inner",0.77,0.98,0.6,0.77]
[null,null,null,"PTRD-D1 Outer",1.65,2.1,1.3,1.65]
[null,null,"T4XJ1X","PTRD-D2 Inner",0.77,0.98,0.6,0.77]
[null,null,null,"PTRD-D2 Outer",1.65,2.1,1.3,1.65]
[null,null,"T4XJ2X","PTRD-D3 Left",0.76,0.97,0.6,0.76]
[null,null,null,"PTRD-D3 Right",1.29,1.64,1.01,1.29]
[null,null,"T4XJ3X","PTRD-D4 Left",0.76,0.97,0.6,0.76]
[null,null,null,"PTRD-D4 Right",1.29,1.64,1.01,1.29]
[]
[null,null,"<< Click Here for Power Take-Off Information >>"]
[]
[null,null,"<< Click Here for Hydrualic Pump Spec's >>"]
[]
[null,null,"<< Click Here for Pump Volvo Part Numbers >>"]
[]
[null,null,"<< Click Here for REPTO Information >>"]
[]
[null,null,"<< Click Here for Hydrualic Pump Fittings >>"]
[]
[null,null,"<< Click Here forPTRD-D3 / PTRD-D4 Informaton >>"]
[]
[null,null,"<< Click here for other option to Adapt other pumps>>"]
[]
[null,null,"<< Click here for Recommend Engine speeds >>"]
[]
[null,null,"Detailed information in the Tabs below"]
[]
[]
[]
[]
[]
[]
[]
[]
[]
[]
[]
[]
[]
[]
[]
[]
[]
[]
[]
[]
[]
[]
[]
[]
[]
[]
[]
[]
[]
[]
[]
[]
[]
[]
[]
[]
[]
[]
[]
[]
[]
[]
[]
[]
[]
[]
[]
[]
[]
[]
[]
[]
[]
[]
[]
[]
[]
[]
[]
[]
[]
[]
[]
[]
[]
[]
[]
[]
[]
[]
[]
[]
[]
[]
[]
[]
[]
[]
[]
[]
[]
[]
[]
[]
[]
[]
[]
[]
[]
[]
[]
[]
[]
[]
[]
[]
[]
[]
[]
[]
[]
[]
[]
[]
[]
[]
[]
[]
[]
[]
[]
[]
[]
[]
[]
[]
[]
[]
[]
[]
[]
[]
[]
[]
[]
[]
[]
[]
[]
[]
[]
[]
[]
[]
[]
[]
[]
[]
[]
[]
[]
[]
[]
[]
[]
[]
[]
[]
[]
[]
[]
[]
[]
[]
[]
[]
[]
[]
[]
[]
[]
[]
[]
[]
[]
[]
[]
[]
[]
[]
[]
[]
[]
[]
[]
[]
[]
[]
[]
[]
[]
[]
[]
[]
[]
[]
[]
[]
[]
[]
[]
[]
[]
[]
[]
[]
[]
[]
[]
[]
[]
[]
[]
[]
[]
[]
[]
[]
[]
[]
[]
[]
[]
[]
[]
[]
[]
[]
[]
[]
[]
[]
[]
[]
[]
[]
[]
[]
[]
[]
[]
[]
[]
[]
[]
[]
[]
[]
[]
[]
[]
[]
[]
[]
[]
[]
[]
[]
[]
[]
[]
[]
[]
[]
[]
[]
[]
[]
[]
[]
[]
[]
[]
[]
[]
[]
[]
[]
[]
[]
[]
[]
[]
[]
[]
[]
[]
[]
[]
[]
[]
[]
[]
[]
[]
[]
[]
[]
[]
[]
[]
[]
[]
[]
[]
[]
[]
[]
[]
[]
[]
[]
[]
[]
[]
[]
[]
[]
[]
[]
[]
[]
[]
[]
[]
[]
[]
[]
[]
[]
[]
[]
[]
[]
[]
[]
[]
[]
[]
[]
[]
[]
[]
[]
[]
[]
[]
[]
[]
[]
[]
[]
[]
[]
[]
[]
[]
[]
[]
[]
[]
[]
[]
[]
[]
[]
[]
[]
[]
[]
[]
[]
[]
[]
[]
[]
[]
[]
[]
[]
[]
[]
[]
[]
[]
[]
[]
[]
[]
[]
[]
[]
[]
[]
[]
[]
[]
[]
[]
[]
[]
[]
[]
[]
[]
[]
[]
[]
[]
[]
[]
[]
[]
[]
[]
[]
[]
[]
[]
[]
[]
[]
[]
[]
[]
[]
[]
[]
[]
[]
[]
[]
[]
[]
[]
[]
[]
[]
[]
[]
[]
[]
[]
[]
[]
[]
[]
[]
[]
[]
[]
[]
[]
[]
[]
[]
[]
[]
[]
[]
[]
[]
[]
[]
[]
[]
[]
[]
[]
[]
[]
[]
[]
[]
[]
[]
[]
[]
[]
[]
[]
[]
[]
[]
[]
[]
[]
[]
[]
[]
[]
[]
[]
[]
[]
[]
[]
[]
[]
[]
[]
[]
[]
[]
[]
[]
[]
[]
[]
[]
[]
[]
[]
[]
[]
[]
[]
[]
[]
[]
[]
[]
[]
[]
[]
[]
[]
[]
[]
[]
[]
[]
[]
[]
[]
[]
[]
[]
[]
[]
[]
[]
[]
[]
[]
[]
[]
[]
[]
[]
[]
[]
[]
[]
[]
[]
[]
[]
[]
[]
[]
[]
[]
[]
[]
[]
[]
[]
[]
[]
[]
[]
[]
[]
[]
[]
[]
[]
[]
[]
[]
[]
[]
[]
[]
[]
[]
[]
[]
[]
[]
[]
[]
[]
[]
[]
[]
[]
[]
[]
[]
[]
[]
[]
[]
[]
[]
[]
[]
[]
[]
[]
[]
[]
[]
[]
[]
[]
[]
[]
[]
[]
[]
[]
[]
[]
[]
[]
[]
[]
[]
[]
[]
[]
[]
[]
[]
[]
[]
[]
[]
[]
[]
[]
[]
[]
[]
[]
[]
[]
[]
[]
[]
[]
[]
[]
[]
[]
[]
[]
[]
[]
[]
[]
[]
[]
[]
[]
[]
[]
[]
[]
[]
[]
[]
[]
[]
[]
[]
[]
[]
[]
[]
[]
[]
[]
[]
[]
[]
[]
[]
[]
[]
[]
[]
[]
[]
[]
[]
[]
[]
[]
[]
[]
[]
[]
[]
[]
[]
[]
[]
[]
[]
[]
[]
[]
[]
[]
[]
[]
[]
[]
[]
[]
[]
[]
[]
[]
[]
[]
[]
[]
[]
[]
[]
[]
[]
[]
[]
[]
[]
[]
[]
[]
[]
[]
[]
[]
[]
[]
[]
[]
[]
[]
[]
[]
[]
[]
[]
[]
[]
[]
[]
[]
[]
[]
[]
[]
[]
[]
[]
[]
[]
[]
[]
[]
[]
[]
[]
[]
[]
[]
[]
[]
[]
[]
[]
[]
[]
[]
[]
[]
[]
[]
[]
[]
[]
[]
[]
[]
[]
[]
[]
[]
[]
[]
[]
[]
[]
[]
[]
[]
[]
[]
[]
[]
[]
[]
[]
[]
[]
[]
[]
[]
[]
[]
[]
[]
[]
[]
[]
[]
[]
[]
[]
[]
[]
[]
[]
[]
[]
[]
[]
[]
[]
[]
[]
[]
[]
[]
[]
[]
[]
[]
[]
[]
[]
[]
[]
[]
[]
[]
[]
[]
[]
[]
[]
[]
[]
[]
[]
[]
[]
[]
[]
[]
[]
[]
[]
[]
[]
[]
[]
[]
[]
[]
[]
[]
[]
[]
[]
[]
[]
[]
[]
[]
[]
[]
[]
[]
[]
[]
[]
[]
[]
[]
[]
[]
[]
[]
[]
[]
[]
[]
[]
[]
[]
[]
[]
[]
[]
[]
[]
[]
[]
[]
[]
[]
[]
[]
[]
[]
[]
[]
[]
[]
[]
[]
[]
[]
[]
[]
[]
[]
[]
[]
[]
[]
[]
[]
[]
[]
[]
[]
[]
[]
[null,null,null,null,null,null,null,null,null,null,null,null,null,null,null,null,null,null,null,null,null,null,null,null,null,null,"IshiftPSC"]
[]
[null,null,null,null,null,null,null,null,null,null,null,null,null,null,null,null,null,null,null,null,null,null,null,null,"Range"]
[null,null,null,null,null,null,null,null,null,null,null,null,null,null,null,null,null,null,null,null,null,null,null,null,"Low","High","Ratio"]
[]
[null,null,null,null,null,null,null,null,null,null,null,null,null,null,null,null,null,null,null,null,null,null,null,null,"X",null,0.6]
[null,null,null,null,null,null,null,null,null,null,null,null,null,null,null,null,null,null,null,null,null,null,null,null,"X",null,0.73]
[null,null,null,null,null,null,null,null,null,null,null,null,null,null,null,null,null,null,null,null,null,null,null,null,null,"X",0.77]
[null,null,null,null,null,null,null,null,null,null,null,null,null,null,null,null,null,null,null,null,null,null,null,null," X","X",0.93]
[null,null,null,null,null,null,null,null,null,null,null,null,null,null,null,null,null,null,null,null,null,null,null,null,"X",null,1.06]
[null,null,null,null,null,null,null,null,null,null,null,null,null,null,null,null,null,null,null,null,null,null,null,null,null,"X",1.18]
[null,null,null,null,null,null,null,null,null,null,null,null,null,null,null,null,null,null,null,null,null,null,null,null,"X",null,1.3]
[null,null,null,null,null,null,null,null,null,null,null,null,null,null,null,null,null,null,null,null,null,null,null,null,"X","X",1.35]
[null,null,null,null,null,null,null,null,null,null,null,null,null,null,null,null,null,null,null,null,null,null,null,null,"X","X",1.65]
[null,null,null,null,null,null,null,null,null,null,null,null,null,null,null,null,null,null,null,null,null,null,null,null,null,"X",1.72]
[null,null,null,null,null,null,null,null,null,null,null,null,null,null,null,null,null,null,null,null,null,null,null,null,null,"X",2.1]

{"sheet":"PTOs","index":1,"n_rows":37,"n_cols":13,"rows_kept":37,"cut":false,"hidden":false,"merged":[[30,1,30,6],[0,9,0,10],[23,10,23,11],[25,10,25,11],[27,10,27,11],[1,10,2,10],[7,10,8,10],[9,10,11,10],[12,10,14,10],[15,10,17,10],[19,2,19,5],[20,2,20,3],[20,4,20,5],[12,9,14,9],[15,8,17,8],[15,9,17,9],[15,0,17,0],[15,1,17,1],[15,2,17,2],[15,6,17,6],[15,5,17,5],[7,8,8,8],[9,8,11,8],[7,9,8,9],[9,9,11,9],[12,8,14,8],[3,6,4,6],[12,0,14,0],[12,1,14,1],[12,2,14,2],[7,5,14,5],[7,6,14,6],[9,0,11,0],[9,1,11,1],[9,2,11,2],[9,4,11,4],[7,0,8,0],[7,1,8,1],[27,12,27,14],[29,12,30,14],[1,0,1,1],[7,2,8,2],[1,3,1,4],[1,5,2,5],[1,6,2,6],[1,7,2,7],[1,2,2,2],[1,8,2,8],[1,9,2,9],[5,7,6,7],[5,5,6,5],[5,6,6,6],[3,7,4,7],[3,5,4,5]]}
[null,null,null,null,null,null,null,null,null,"Programing with PTT "]
["Power Take-Off",null,"Weight  lbs.","PTO Drive Type",null,"Max. Torque lb-ft (Nm)","Max HP","Direction of Rotation","Installation Kit             Click here to View","Accessory Kit                      AMT - D","Accessory Kit                      AMT - F"]
["Part Number","Model",null,"Type","Dimension"]
[21027119,"PTR-F",13,"Flange","SAE 1300","740(1000)",200,"Clockwise when facing back of Engine",85135639,85137335,85137335]
[21027101,"PTR-D",8,"Direct","DIN 5462",null,null,null,"85135639\n23664407",85137335,85137335]
[22770442,"PTR-FL",35.299999999999997,"Flange","SAE 1300","440 (597)",135,"Counter Clockwise when facing Back of Engine",85135639,85137335,85137335]
[22770448,"PTR-DM",28.7,"Direct","DIN 5462",null,null,null,85135639,85137335,85137335]
[21309308,"PTRD-F",41.9,"Flange (Outer)","SAE 1400","405 (549)",161,"Clockwise when facing back of Engine",85135639,85139651,85137335]
[null,null,null,"Direct  (Inner)","DIN 5462",null,null,"Counter Clockwise when facing Back of Engine"]
[21309472,"PTRD-D",44.1,"Direct (Front)","DIN 5462",null,null,"Counter Clockwise when facing Front of Engine",85135639,85139652,85137335]
[null,null,null,"Direct (Outer)",null,null,null,"Clockwise when facing back of Engine"]
[null,null,null,"Direct (Inner)",null,null,null,"Counter Clockwise when facing Back of Engine"]
[21309477,"PTRD-D1",57.3,"Direct (Front)","DIN 5462",null,null,"Counter Clockwise when facing Front of Engine","85135639\n21229046",85140254,85151840]
[null,null,null,"Flange (Outer)","SAE 1400",null,null,"Clockwise when facing back of engine"]
[null,null,null,"Direct (Inner)","DIN 5462",null,null,"Counter Clockwise when facing Back of Engine",null,null,null,null," "]
[21309495,"PTRD-D2",70.5,"Direct (Front)","DIN 7653","See Chart Below for Torque Specifications",161,"Counter Clockwise when facing Front of Engine","85135639\n21229046",85140256,85151840]
[null,null,null,"Flange (Outer)","SAE 1300",null,null,"Clockwise when facing back of Engine"]
[null,null,null,"Flange (Inner)","SAE 1400",null,null,"Counter Clockwise when facing Back of Engine"]
[]
[null,null,"Maximum PTO Torque for PTRD-D2"]
[null,null,"Inner Shaft lb-ft (Nm)",null,"Outer Shaft lb-ft (Nm) "]
[null,null,735,-997,110,-149]
[null,null,660,-895,140,-190]
[null,null,590,-800,175,-237]
[null,null,515,-698,210,-285]
[null,null,440,-597,280,-380]
[null,null,365,-495,310,-420]
[null,null,220,-298,345,-468,null,null,null,null,null,null,"PTO2 \"Outer\""]
[null,null,145,-197,380,-515]
[null,null,95,-129,405,-549,null,null,null,null,null,null,"PTO 1 \"Inner\""]
[null,"* PTO Drive Information"]
[null,"Drive","Pilot (mm)","Bolt Pattern","Bolt Circle","Shaft Type"]
[null,"SAE 1300",60.32,"4  / 100°",79.400000000000006]
[null,"SAE 1400",69.849999999999994,"4 / 80°",95.3]
[null,"DIN",80,null,null,"8 x 32 x 36",null,null,"Single PTO remove ACC kit # 85142813"]
[]
["NOTES: PTR-D requires install parts kit 23664407"]

{"sheet":"PTRD-D3-D4","index":2,"n_rows":74,"n_cols":22,"rows_kept":74,"cut":false,"hidden":false,"merged":[[72,7,72,8],[72,9,72,10],[73,7,73,8],[73,9,73,10],[20,15,25,16],[47,15,48,16],[69,7,69,8],[69,9,69,10],[70,7,70,8],[70,9,70,10],[71,7,71,8],[71,9,71,10],[66,7,66,8],[66,9,66,10],[67,7,67,8],[67,9,67,10],[68,7,68,8],[68,9,68,10],[63,6,63,11],[64,7,64,8],[64,9,64,10],[65,7,65,8],[65,9,65,10],[65,17,65,18],[65,19,65,20],[66,17,66,18],[66,19,66,20],[17,15,18,16],[17,17,17,18],[17,19,17,20],[18,17,18,18],[18,19,18,20],[24,17,24,18],[24,19,24,20],[25,17,25,18],[25,19,25,20],[0,4,2,9],[12,5,12,7],[12,10,12,12],[12,1,12,3],[27,15,27,16],[17,0,17,13],[18,2,19,3],[18,4,19,5],[18,0,19,1],[18,6,19,7],[18,8,19,9],[18,10,19,12],[18,13,19,13],[20,10,27,12],[20,0,27,1],[20,2,27,3],[20,4,27,5],[20,6,27,7],[20,8,27,9],[20,13,27,13],[28,10,32,12],[28,13,32,13],[33,10,37,12],[33,13,37,13],[28,0,32,1],[28,2,32,3],[28,4,32,5],[28,6,32,7],[28,8,32,9],[33,0,37,1],[33,2,37,3],[33,4,37,5],[33,6,37,7],[33,8,37,9],[38,13,42,13],[43,0,50,1],[43,2,50,3],[43,4,50,5],[43,6,50,7],[43,8,50,9],[43,10,50,12],[43,13,50,13],[38,0,42,1],[38,2,42,3],[38,4,42,5],[38,6,42,7],[51,7,51,8],[51,9,51,10],[52,6,53,11],[38,8,42,9],[38,10,42,12]]}
[null,null,null,null," Volvo I-shift Dual Power Take-Off"]
[]
[]
[]
[]
[]
[]
[]
[]
[]
[]
[]
[null,"PTRD-D3 Part# 23283784",null,null,null,"          PTRD-D4 Part# 23283785",null,null,null,null,"       Service Part Part# 2328397"]
[]
[]
[]
[]
["Avalible Output Drive Kits Fro PTRD -D3 or PTRD-D4",null,null,null,null,null,null,null,null,null,null,null,null,null,null,"Ratio (RPM out / RPM in)",null,"LHS",null,"RHS"]
["Par Number",null,"Kit Identifer ",null,"Interface",null,"Flange / Shaft Connection",null,"Characteristics",null,"Image",null,null,"Weight",null,null,null,"0.85:1",null,"1.43:1"]
[]
["23283788                 23283795",null,"PTA-F",null,"SAE 1410                         or                           SAE1310",null,"SAE J1946                     ISO7647",null,"Independently Engaged Direct Ratio",null,null,null,null,"21.2lbs     [9.6kg]",null,"Total Ratio                                           (PTO RPM / Engine RPM)",null,"LS","HS","LS","HS"]
[null,null,null,null,null,null,null,null,null,null,null,null,null,null,null,null,null,"0.60:1","0.76:1","1.01:1","1.26:1","DD"]
[null,null,null,null,null,null,null,null,null,null,null,null,null,null,null,null,null,"0.76:1","0.97:1","1.29:1","1.64:1","OD"]
[]
[null,null,null,null,null,null,null,null,null,null,null,null,null,null,null,null,null,"0.28:1",null,"0.47:1",null,"DD"]
[null,null,null,null,null,null,null,null,null,null,null,null,null,null,null,null,null,"0.51:1",null,"0.86:1",null,"OD"]
[]
[null,null,null,null,null,null,null,null,null,null,null,null,null,null,null,"Output Torque"]
[23283789,null,"PTA-D",null,"4 x 80mm",null,"DIN - 5462                 ISO - 7653",null,"Independently Engaged Direct Ratio",null,null,null,null,"16.8lbs                             [736kg]",null,"Left Gear","Right Gear"]
[null,null,null,null,null,null,null,null,null,null,null,null,null,null,null,"Lb Ft. / [Nm]","Lb Ft. / [Nm]"]
[null,null,null,null,null,null,null,null,null,null,null,null,null,null,null,"0 / 0","590 / 800"]
[null,null,null,null,null,null,null,null,null,null,null,null,null,null,null,"125 / 170","516 / 700"]
[null,null,null,null,null,null,null,null,null,null,null,null,null,null,null,"250 / 340","442 / 600"]
[23283786,null,"SAE-BB",null,"SAE - BB          1\" 15 Spline",null,"SAE - J744",null,"Always Engaged when PTO or PTO kit is active Direct Ratio",null,null,null,null,"5.1lbs            [2.3kg]",null,"376 / 510","369 / 500"]
[null,null,null,null,null,null,null,null,null,null,null,null,null,null,null,"501 / 680","295 / 400"]
[null,null,null,null,null,null,null,null,null,null,null,null,null,null,null,"627 / 850","221 / 300"]
[null,null,null,null,null,null,null,null,null,null,null,null,null,null,null,"678 / 920","192 / 260"]
[null,null,null,null,null,null,null,null,null,null,null,null,null,null,null,"737 / 1000 ","147 / 200"]
[23283787,null,"SAE-C",null,"SAE - C             1 1/4\" 14 Spline",null,"SAE - J745",null,"Always Engaged when PTO or PTO kit is active Direct Ratio",null,null,null,null,"8.4lbs            [3.8kg]",null,"737 / 1000 ","74 / 100"]
[null,null,null,null,null,null,null,null,null,null,null,null,null,null,null,"737 / 1000 ","0 / 0"]
[]
[null,null,null,null,null,null,null,null,null,null,null,null,null,null,null,"Output Power"]
[null,null,null,null,null,null,null,null,null,null,null,null,null,null,null,"128 HP [95kW]","167  HP  [125kW]"]
["23283790                 23283791",null,"PT-CF",null,"SAE 1410                         or                           SAE1310",null,"SAE J1946                     ISO7647",null,"Always Engaged When PTO is Active Direct Ratio",null,null,null,null,"5.5lbs     [2.5kg]"]
[]
[null,null,null,null,null,null,null,null,null,null,null,null,null,null,null,"Weight    PTRD-D31","74lbs. [33.6kg]"]
[null,null,null,null,null,null,null,null,null,null,null,null,null,null,null,"Weight    PTRD-D42","78lbs. [35.4kg]"]
[null,null,null,null,null,null,null,null,null,null,null,null,null,null,null,"1 Without  Output Drive                                                                                  2 With PTA-F Output Drive"]
[]
[]
[null,null,null,null,null,null,null,null,null,null,null,null,null,null,null,"Bending Moment","< 40Nm"]
[]
[null,null,null,null,null,null,"Air Shuttle Valve Kit Part No. 23720743 Required for PTRD-D3 and PTRD-D4 with multiple Drives"]
[]
[]
[]
[]
[]
[]
[]
[]
[]
[]
[null,null,null,null,null,null,"Kit 23720743 Kit Contents"]
[null,null,null,null,null,null,"QTY ","Part Number",null,"Description",null,"Posiition"]
[null,null,null,null,null,null,1,1667979,null,"Shuttle Valve",null,1]
[null,null,null,null,null,null,1,991088,null,"Nipple 06 M10",null,2]
[null,null,null,null,null,null,2,60113296,null,"Washer 5.3* 10*1",null,3]
[null,null,null,null,null,null,2,992016,null,"Swivel M10*1",null,4]
[null,null,null,null,null,null,2,991185,null,"T Nipple",null,5]
[null,null,null,null,null,null,2,994783,null,"Screw M5*30",null,6]
[null,null,null,null,null,null,4,991970,null,"Nipple 06. Threadless",null,7]
[null,null,null,null,null,null,"130mm",980831,null,"Air Tubing",null,8]
[null,null,null,null,null,null,2,966720,null,"Cable Tie",null,9]

{"sheet":"Pump Info","index":3,"n_rows":1011,"n_cols":43,"rows_kept":1011,"cut":false,"hidden":false,"merged":[[15,39,15,40],[15,41,15,43],[11,38,11,39],[13,39,13,40],[13,41,13,43],[14,39,14,40],[14,41,14,43],[1,38,2,44],[3,38,3,44],[4,38,4,40],[5,38,5,40],[6,38,6,44],[70,1,70,2],[70,3,70,7],[67,13,67,14],[68,13,68,14],[69,13,69,14],[70,13,70,14],[69,1,69,2],[69,3,69,7],[68,1,68,2],[68,3,68,7],[23,1,23,8],[34,1,34,3],[35,1,35,3],[36,1,36,3],[0,1,0,8],[24,1,24,8],[1,1,1,8],[12,1,12,3],[13,1,13,3],[14,1,14,3],[16,1,17,3],[18,1,19,3],[15,1,15,3],[20,1,20,3],[7,7,9,7],[6,8,9,8],[2,14,2,15],[3,14,3,15],[25,14,25,15],[15,9,15,10],[15,11,15,12],[18,9,18,10],[18,11,18,12],[19,9,19,10],[19,11,19,12],[20,9,20,10],[20,11,20,12],[16,9,16,10],[12,15,12,17],[16,11,16,12],[17,9,17,10],[14,9,14,10],[996,33,996,34],[4,14,4,15],[5,14,5,15],[28,14,28,15],[62,9,62,14],[26,14,26,15],[27,14,27,15],[57,9,57,14],[58,9,58,14],[59,9,59,14],[60,9,60,14],[9,14,10,17],[14,11,14,12],[56,9,56,14],[32,14,33,17],[17,11,17,12],[47,3,47,7],[51,1,51,2],[52,1,52,2],[53,1,53,2],[48,3,48,7],[51,3,51,7],[47,1,47,2],[48,1,48,2],[49,1,49,2],[50,1,50,2],[50,3,50,7],[52,3,52,7],[28,8,30,8],[29,7,30,7],[66,1,66,10],[67,1,67,2],[67,3,67,7],[46,3,46,7],[46,1,46,2],[53,3,53,7],[49,3,49,7],[45,1,45,10],[37,1,37,3],[38,1,38,3],[39,1,40,3],[41,1,41,3],[55,1,55,8],[56,3,56,6]]}
[null,"Parker Bent Axial Piston Fixed Pump Specifications"]
[null,"Pump Flow (gpm) at Pump Speed (RPM)",null,null,null,null,null,null,null,null,null,null,null,null,null,null,null,null,null,null,null,null,null,null,null,null,null,null,null,null,null,null,null,null,null,null,null,null,"Calculation of Pump Bending Moment"]
[null,"Pump","1000 RPM","1200 RPM","1400 RPM","1600 RPM","1800 RPM","2000 RPM","2200 RPM","CG",null,null,null,null,"Pump Model",null,null,"Select Pump",null,null,null,"1000 RPM","1200 RPM","1400 RPM","1600 RPM","1800 RPM","2000 RPM","2200 RPM","(CC/REV)","CU IN/Rev",null,"Use"]
[null,"F1-25",6.8,8.1,9.4,10.8,12.2,13.5,14.9,"85mm",null,null,null,null,"Pump Speed",null,null,"RPM",null,"X999","F1-25",6.8,8.1,9.4,10.8,12.2,13.5,14.9,25,1.5255936029999999,null,1.55,"AG999",null,null,null,null,null,"Mb Bending moment at pump connection to power take-off (Nm)"]
[null,"F1-41",10.8,12.9,15.1,17.2,19.399999999999999,21.6,23.7,"85mm",null,null,null,null,"Displacement",null,{"$f":"IF(Q3=\"F1-25\",1.55, IF(Q3=\"F1-41\",2.48, IF(Q3=\"F1-61\",3.63, IF(Q3=\"F1-81\",4.98, IF(Q3=\"F1-101\",6.23,)))))","v":0},"CU.IN./Rev",null,"X1000","F1-41",10.8,12.9,15.1,17.2,19.399999999999999,21.6,23.7,41,2.440949764,null,2.48,"AG100",null,null,null,null,null,"m Pump weight (kg)"]
[null,"F1-61",15.7,18.899999999999999,22,25.1,28.3,31.4,34.6,"85mm",null,null,null,null,"Pump Flow ",null,{"$f":"IF(Q4=0,0,Q4*Q5/231)","v":0},"GPM",null,"X1001","F1-61",15.7,18.899999999999999,22,25.1,28.3,31.4,34.6,61,3.7224483899999998,null,3.63,"AG1001",null,null,null,null,null,"g Standard gravity = 9.81 N/kg. "]
[null,"F1-81",21.6,25.9,30.2,34.5,38.799999999999997,43.1,"Over Speed","85mm",null,null,null,null,null,null,null,null,null,"X102","F1-81",21.6,25.9,30.2,34.5,38.799999999999997,43.1,0,81,4.9429232719999998,null,4.9800000000000004,"AG1002",null,null,null,null,null,"A Distance between pump center of gravity an anchorage on Power Take Off (m)"]
[null,"F1-101",27,32.4,37.799999999999997,43.2,48.5,"Over Speed",null,"85mm",null,null,null,null,null,null,null,null,null,"X1003","F1-101",27,32.4,37.799999999999997,43.2,48.5,0,0,101,6.1633981540000002,null,6.23,"AG1003"]
[null,"F2-42/42","11.3 / 10.8","13.6 / 13.0","15.9 / 15.2","18.1 / 17.3","20.4 / 19.5",null,null,"119mm",null,null,null,null,null,null,null,null,null,"X1004","F2-42/42","11.3 / 10.8","13.6 / 13.0","15.9 / 15.2","18.1 / 17.3","20.4 / 19.5",0,0,"42/42",2.5629972520000002,2.5629972520000002,"2.615 / 2.495","AG1004","AH1004",null,null,null,null,null,"m",null,"(kg)"]
[null,"F2-53/53","14.3 / 13.7","17.1 / 16.5","20.0 / 19.2","22.9 / 22.0","25.6 / 24.7",null,null,"119mm",null,null,null,null,"Select the Pump and enter the Pump Speed above for the GPM",null,null,null,null,"X1005","F2-53/53","14.3 / 13.7","17.1 / 16.5","20.0 / 19.2","22.9 / 22.0","25.6 / 24.7",0,0,"53/53",3.2342584369999998,3.2342584369999998,"3.305 / 3.165","AG1005","AH1005",null,null,null,null,null,"g",9.81,"N/kg"]
[null,null,null,null,null,null,null,null,null,null,null,null,null,null,null,null,null,null,null,null,null,null,null,null,null,null,null,null,null,null,null,null,null,null,null,null,null,null,null,"A",null,"(m)"]
[null,null,null,null,null,null,null,null,null,null,null,null,null,null,null,null,null,null,null,null,null,null,null,null,null,null,null,null,null,null,null,null,null,null,null,null,null,null,"Bending Moment",null,{"$f":"(AO9*AO10*AO11)","v":0},"Nm"]
[null,"Pump Frame Size",null,null,"F1-25","F1-41","F1-61","F1-81","F1-101","F2-42          A","F2-42                 B","F2-53           A","F2-53            B","F3-81","F1-101",null,null,null,null,null,null,"800 RPM","1000 RPM","1200 RPM","1400 RPM","1600 RPM","1800 RPM","2000 RPM","(CC/REV)"]
[null,"Displacement (cu.in/rev)",null,null,1.56,2.5,3.63,4.9800000000000004,6.28,2.62,2.5,3.29,3.17,4.9800000000000004,6.28,null,null,null,null,null,"GP1-23",4.9000000000000004,6.1,7.3,8.5,9.6999999999999993,10.9,12.1,23,1.4035461140000001,null,1.403,null,null,null,null,null,null,null,"PTO",null,"Maximum Bending Moment"]
[null,"Max. Continous Pressure",null,null,3600,3600,3600,3600,3600,5000,null,5000,null,3600,3600,null,null,null,null,null,"GP1-41",8.6999999999999993,10.8,13,15.2,17.3,19.5,21.6,41,2.440949764,null,2.5009999999999999,null,null,null,null,null,null,null,"PTR",null,"40 Nm  "]
[null,"Max. Inermittent Pressure",null,null,5000,5000,5000,5000,5000,5800,null,5800,null,5000,5000,null,null,null,null,null,"GP1-60",12.7,15.8,19,22.1,25.3,28.5,0,60,3.6614246459999999,null,3.6612,null,null,null,null,null,null,null,"PTRD",null,"40 Nm  "]
[null,"Min Speed RPM @ Max Pressure Max",null,null,2700,2700,2700,2300,2300,2550,null,2550,null,2300,2300,null,null,null,null,null,"GP1-80",16.899999999999999,21.1,25.3,29.6,33.799999999999997,0,0,80,4.8818995279999999,null,4.8818995279999999]
[null,null,null,null,2200,2100,1900,1750,1550,1800,null,1800,null,1750,1550,null,null,null,null,null,"GP1-100",21,26,31,37,0,0,0,100,6.1]
[null,"Continous Max Output HP Intermittent",null,null,26.8,36.200000000000003,45.5,54.9,64.3,117,null,117,null,54.9,64.3,null,null,null,null,null,null,null,null,null,null,null,null,null,null,null,null,null,null,null,null,null,null,null,null,"Convert Nm to ft/lb and or convert ft/lb to Nm"]
[null,null,null,null,34.799999999999997,49.6,59,72.3,83.1,134,null,168,null,72.3,83.1,null,null,null,null,null,null,null,null,null,null,null,null,null,null,null,null,null,null,null,null,null,null,null,null,null,"Nm",{"$f":"IF(AN20=0,0,AN20*0.73756)","v":0},"ft/lb"]
[null,"Weight Lbs [Kg]",null,null,"18.7 [8.5]","18.7 [8.5]","18.7 [8.5]","27.5 [12.5]","27.5 [12.5]","41.8 [19]",null,"41.8 [19]",null,"27.5 [16.7]","27.5 [16.7]",null,null,null,null,null,null,null,null,null,null,null,null,null,null,null,null,null,null,null,null,null,null,null,null,{"$f":"IF(AP21=0,0,AP21*1.3556)","v":0},"Nm",0,"ft/lb"]
[]
[null,null,null,null,null,null,null,null,null,null,null,null,null,null,null,null,null,null,null,null,null,null,null,null,null,null,null,null,null,null,null,null,null,null,null,null,null,null,null,"Convert  lb to Kg and or Convert Kg to lb"]
[null,"Gear Pump Specifications",null,null,null,null,null,null,null,null,null,null,null,null,null,null,null,null,null,null,null,null,null,null,null,null,null,null,null,null,null,null,null,null,null,null,null,null,null,null,"lb",{"$f":"AN24*0.45359237","v":0},"Kg"]
[null,"Pump Flow (gpm) at Pump Speed (RPM)",null,null,null,null,null,null,null,null,null,null,null,null,null,null,null,null,null,null,null,"F1-25",{"$f":"IF(V25=\"F1-25\",1.55, IF(V25=\"F1-41\",2.48, IF(V25=\"F1-61\",3.63, IF(V25=\"F1-81\",4.98, IF(V25=\"F1-101\",6.23,)))))","v":1.55},null,null,null,null,null,null,null,null,null,null,null,null,null,null,null,null,{"$f":"AP25/0.45359237","v":0},"lb",null,"Kg"]
[null,"Pump ","800 RPM","1000 RPM","1200 RPM","1400 RPM","1600 RPM","1800 RPM","2000 RPM",null,null,null,null,null,"Pump Model",null,null,"Select Pump"]
[null,"GP1-23",4.9000000000000004,6.1,7.3,8.5,9.6999999999999993,10.9,12.1,null,null,null,null,null,"Pump Speed",null,null,"RPM",null,null,null,"GP1-23",{"$f":"IF(V27=\"GP1-23\",1.403, IF(V27=\"GP1-41\",2.501, IF(V27=\"GP1-60\",3.661, IF(V27=\"GP1-80\",4.882, ))))","v":1.403}]
[null,"GP1-41",8.6999999999999993,10.8,13,15.2,17.3,19.5,21.6,null,null,null,null,null,"Displacement",null,{"$f":"IF(Q26=\"GP1-23\",1.403,IF(Q26=\"GP1-41\",2.501,IF(Q26=\"GP1-60\",3.661,IF(Q26=\"GP1-80\",4.882,IF(Q26=\"GP1-100\",6.1,)))))","v":0},"CU.IN./Rev"]
[null,"GP1-60",12.7,15.8,19,22.1,25.3,28.5,"Over Speed",null,null,null,null,null,"Pump Flow ",null,{"$f":"IF(Q27=0,0,Q27*Q28/231)","v":0},"GPM"]
[null,"GP1-80",16.899999999999999,21.1,25.3,29.6,33.799999999999997,"Over Speed",null,null,null,null,null,null,null,null,null,null,null,null,null,{"$f":"V25","v":"F1-25"},null,{"$f":"VLOOKUP(V30,U:AF,12,TRUE)","v":6.23}]
[null,"GP1-100",21,26,32,37,"Over Speed"]
[]
[null,null,null,null,null,null,null,null,null,null,null,null,null,null,"Select the Pump and enter the Pump Speed above for the GPM"]
[]
[null,"Pump Frame Size",null,null,"GP1-23","GP1-41","GP1-60","GP1-80","GP1-100"]
[null,"Displacement (cu.in/rev)",null,null,1.4,2.5,3.6,4.8,6.1]
[null,"Max. Continous Pressure",null,null,3625,3045,4061,2900,2465]
[null,"Max. Inermittent Pressure",null,null,4351,3770,4351,3045,2610]
[null,"Max. Peak Pressure",null,null,4351,3770,4351,3190,2755]
[null,"Min Speed RPM @ Max Pressure Max",null,null,500,500,500,500,500]
[null,null,null,null,2000,2000,1800,1600,1400]
[null,"Weight",null,null,14.7,17.100000000000001,28.6,30.8,33.1]
[]
[]
[]
[null,"Parker G101 / 102 Dump Pumps: "]
[null,"Parker Part #",null,"Description",null,null,null,null,"Rotation","Gear","CID"]
[null,"3089310047T",null,"G101-1-2.0 Remote Mount",null,null,null,null,"BI","2.0\"",3.94]
[null,"3089310416T",null,"G102-1-2.0 -R-4S Direct Mount",null,null,null,null,"CW","2.0\"",3.94]
[null,"3089310903T",null,"G102-1-2.0 -R-4S-AS Direct Mount w/Airshift installed",null,null,null,null,"CW","2.0\"",3.94]
[null,"3089310418T",null,"G102--1-2.0-L-4S Direct Mount",null,null,null,null,"CCW","2.0\"",3.94]
[null,"3089310905T",null,"G102-2.0-L-4S-AS Direct Mount w/Airshift installed",null,null,null,null,"CCW","2.0\"",3.94]
[null,"3089310911T",null,"G102-2.0-L-2/4S-W Direct Mount Wet Spline",null,null,null,null,"CCW","2.0\"",3.94]
[null,"3089310910T",null,"G102-2.0-R-2/4S-W Direct Mount Wet Spline",null,null,null,null,"CW","2.0\"",3.94]
[]
[null,"Model Features"]
[null,"Model ","Maximum","GPM@1800 RPM",null,null,null,"Maximum ","Available ","A: Two or Three-line Hookup"]
[null,"Number","PSI","3/4\"","1½\"","2\"","2½\"","Speed","Features","B: Remote Valve Activation"]
[null,"G101",2500,9.5,21,29,null,"2400 RPM","A,B,D,E","C: Factory Set Rotation"]
[null,"G102",2500,9.5,21,29,null,"2400 RPM","A,B,C,F, G","D: Either Shaft Rotation"]
[null,"C101",2500," ",null,39,48,"2400 RPM","A,B,D,E","E: 1.00\" diameter Keyed Shaft"]
[null,"C102",2500," ",null,39,48,"2400 RPM","A,B,C,F","F: SAE \"B\" Splined Shaft (13Teeth, 16/32 pitch)"]
[null,null,null,null,null,null,null,null,null,"G: 5462  DIN Splined Shaft (B8x 32 x36)"]
[]
[]
[]
[null,"Parker VP-1 Variable Piston pumps: REPTO mount only "]
["Name","Parker Part #",null,"Description",null,null,null,null,"Rotation","Gear","IN3/REV","CID","Mount","Maxflow GPM"]
["VP1-45R","3089310047T",null,"G101-1-2.0 Remote Mount",null,null,null,null,"BI","2.0\"",3.94,3.94,"REPTO"]
["VP1-75R","3089310416T",null,"G102-1-2.0 -R-4S Direct Mount",null,null,null,null,"CW","2.0\"",3.94,3.94,"REPTO"]
["VP1-120R","3089310416T",null,"G102-1-2.0 -R-4S Direct Mount",null,null,null,null,"CW","2.0\"",7.93,null,"REPTO",66]
[]
[]
[]
[]
[]
[]
[]
[]
[]
[]
[]
[]
[]
[]
[]
[]
[]
[]
[]
[]
[]
[]
[]
[]
[]
[]
[]
[]
[]
[]
[]
[]
[]
[]
[]
[]
[]
[]
[]
[]
[]
[]
[]
[]
[]
[]
[]
[]
[]
[]
[]
[]
[]
[]
[]
[]
[]
[]
[]
[]
[]
[]
[]
[]
[]
[]
[]
[]
[]
[]
[]
[]
[]
[]
[]
[]
[]
[]
[]
[]
[]
[]
[]
[]
[]
[]
[]
[]
[]
[]
[]
[]
[]
[]
[]
[]
[]
[]
[]
[]
[]
[]
[]
[]
[]
[]
[]
[]
[]
[]
[]
[]
[]
[]
[]
[]
[]
[]
[]
[]
[]
[]
[]
[]
[]
[]
[]
[]
[]
[]
[]
[]
[]
[]
[]
[]
[]
[]
[]
[]
[]
[]
[]
[]
[]
[]
[]
[]
[]
[]
[]
[]
[]
[]
[]
[]
[]
[]
[]
[]
[]
[]
[]
[]
[]
[]
[]
[]
[]
[]
[]
[]
[]
[]
[]
[]
[]
[]
[]
[]
[]
[]
[]
[]
[]
[]
[]
[]
[]
[]
[]
[]
[]
[]
[]
[]
[]
[]
[]
[]
[]
[]
[]
[]
[]
[]
[]
[]
[]
[]
[]
[]
[]
[]
[]
[]
[]
[]
[]
[]
[]
[]
[]
[]
[]
[]
[]
[]
[]
[]
[]
[]
[]
[]
[]
[]
[]
[]
[]
[]
[]
[]
[]
[]
[]
[]
[]
[]
[]
[]
[]
[]
[]
[]
[]
[]
[]
[]
[]
[]
[]
[]
[]
[]
[]
[]
[]
[]
[]
[]
[]
[]
[]
[]
[]
[]
[]
[]
[]
[]
[]
[]
[]
[]
[]
[]
[]
[]
[]
[]
[]
[]
[]
[]
[]
[]
[]
[]
[]
[]
[]
[]
[]
[]
[]
[]
[]
[]
[]
[]
[]
[]
[]
[]
[]
[]
[]
[]
[]
[]
[]
[]
[]
[]
[]
[]
[]
[]
[]
[]
[]
[]
[]
[]
[]
[]
[]
[]
[]
[]
[]
[]
[]
[]
[]
[]
[]
[]
[]
[]
[]
[]
[]
[]
[]
[]
[]
[]
[]
[]
[]
[]
[]
[]
[]
[]
[]
[]
[]
[]
[]
[]
[]
[]
[]
[]
[]
[]
[]
[]
[]
[]
[]
[]
[]
[]
[]
[]
[]
[]
[]
[]
[]
[]
[]
[]
[]
[]
[]
[]
[]
[]
[]
[]
[]
[]
[]
[]
[]
[]
[]
[]
[]
[]
[]
[]
[]
[]
[]
[]
[]
[]
[]
[]
[]
[]
[]
[]
[]
[]
[]
[]
[]
[]
[]
[]
[]
[]
[]
[]
[]
[]
[]
[]
[]
[]
[]
[]
[]
[]
[]
[]
[]
[]
[]
[]
[]
[]
[]
[]
[]
[]
[]
[]
[]
[]
[]
[]
[]
[]
[]
[]
[]
[]
[]
[]
[]
[]
[]
[]
[]
[]
[]
[]
[]
[]
[]
[]
[]
[]
[]
[]
[]
[]
[]
[]
[]
[]
[]
[]
[]
[]
[]
[]
[]
[]
[]
[]
[]
[]
[]
[]
[]
[]
[]
[]
[]
[]
[]
[]
[]
[]
[]
[]
[]
[]
[]
[]
[]
[]
[]
[]
[]
[]
[]
[]
[]
[]
[]
[]
[]
[]
[]
[]
[]
[]
[]
[]
[]
[]
[]
[]
[]
[]
[]
[]
[]
[]
[]
[]
[]
[]
[]
[]
[]
[]
[]
[]
[]
[]
[]
[]
[]
[]
[]
[]
[]
[]
[]
[]
[]
[]
[]
[]
[]
[]
[]
[]
[]
[]
[]
[]
[]
[]
[]
[]
[]
[]
[]
[]
[]
[]
[]
[]
[]
[]
[]
[]
[]
[]
[]
[]
[]
[]
[]
[]
[]
[]
[]
[]
[]
[]
[]
[]
[]
[]
[]
[]
[]
[]
[]
[]
[]
[]
[]
[]
[]
[]
[]
[]
[]
[]
[]
[]
[]
[]
[]
[]
[]
[]
[]
[]
[]
[]
[]
[]
[]
[]
[]
[]
[]
[]
[]
[]
[]
[]
[]
[]
[]
[]
[]
[]
[]
[]
[]
[]
[]
[]
[]
[]
[]
[]
[]
[]
[]
[]
[]
[]
[]
[]
[]
[]
[]
[]
[]
[]
[]
[]
[]
[]
[]
[]
[]
[]
[]
[]
[]
[]
[]
[]
[]
[]
[]
[]
[]
[]
[]
[]
[]
[]
[]
[]
[]
[]
[]
[]
[]
[]
[]
[]
[]
[]
[]
[]
[]
[]
[]
[]
[]
[]
[]
[]
[]
[]
[]
[]
[]
[]
[]
[]
[]
[]
[]
[]
[]
[]
[]
[]
[]
[]
[]
[]
[]
[]
[]
[]
[]
[]
[]
[]
[]
[]
[]
[]
[]
[]
[]
[]
[]
[]
[]
[]
[]
[]
[]
[]
[]
[]
[]
[]
[]
[]
[]
[]
[]
[]
[]
[]
[]
[]
[]
[]
[]
[]
[]
[]
[]
[]
[]
[]
[]
[]
[]
[]
[]
[]
[]
[]
[]
[]
[]
[]
[]
[]
[]
[]
[]
[]
[]
[]
[]
[]
[]
[]
[]
[]
[]
[]
[]
[]
[]
[]
[]
[]
[]
[]
[]
[]
[]
[]
[]
[]
[]
[]
[]
[]
[]
[]
[]
[]
[]
[]
[]
[]
[]
[]
[]
[]
[]
[]
[]
[]
[]
[]
[]
[]
[]
[]
[]
[]
[]
[]
[]
[]
[]
[]
[]
[]
[]
[]
[]
[]
[]
[]
[]
[]
[]
[]
[]
[]
[]
[]
[]
[]
[]
[]
[]
[]
[]
[]
[]
[]
[]
[]
[]
[]
[]
[]
[]
[]
[]
[]
[]
[]
[]
[null,null,null,null,null,null,null,null,null,null,null,null,null,null,null,null,null,null,null,null,null,null,null,null,"1000 RPM","1200 RPM","1400 RPM","1600 RPM","1800 RPM","2000 RPM","2200 RPM","Use","(CC/REV)","CU IN/Rev"]
[null,null,null,null,null,null,null,null,null,null,null,null,null,null,null,null,null,null,null,null,null,null,null,"F1-25",6.8,8.1,9.4,10.8,12.2,13.5,14.9,1.55,25,1.5255936029999999]
[null,null,null,null,null,null,null,null,null,null,null,null,null,null,null,null,null,null,null,null,null,null,null,"F1-41",10.8,12.9,15.1,17.2,19.399999999999999,21.6,23.7,2.48,41,2.440949764]
[null,null,null,null,null,null,null,null,null,null,null,null,null,null,null,null,null,null,null,null,null,null,null,"F1-61",15.7,18.899999999999999,22,25.1,28.3,31.4,34.6,3.63,61,3.7224483899999998]
[null,null,null,null,null,null,null,null,null,null,null,null,null,null,null,null,null,null,null,null,null,null,null,"F1-81",21.6,25.9,30.2,34.5,38.799999999999997,43.1,null,4.9800000000000004,81,4.9429232719999998]
[null,null,null,null,null,null,null,null,null,null,null,null,null,null,null,null,null,null,null,null,null,null,null,"F1-101",27,32.4,37.799999999999997,43.2,48.5,null,null,6.23,101,6.1633981540000002]
[null,null,null,null,null,null,null,null,null,null,null,null,null,null,null,null,null,null,null,null,null,null,null,"F2-42/42","11.3 / 10.8","13.6 / 13.0","15.9 / 15.2","18.1 / 17.3","20.4 / 19.5",null,null,"2.615 / 2.495","42/42",2.5629972520000002,2.5629972520000002]
[null,null,null,null,null,null,null,null,null,null,null,null,null,null,null,null,null,null,null,null,null,null,null,"F2-53/53","14.3 / 13.7","17.1 / 16.5","20.0 / 19.2","22.9 / 22.0","25.6 / 24.7",null,null,"3.305 / 3.165","53/53",3.2342584369999998,3.2342584369999998]
[]
[]
[null,null,null,null,null,null,null,null,null,null,null,null,null,null,null,null,null,null,null,null,null,null,null,null,"800 RPM","1000 RPM","1200 RPM","1400 RPM","1600 RPM","1800 RPM","2000 RPM",null,"(CC/REV)"]
[null,null,null,null,null,null,null,null,null,null,null,null,null,null,null,null,null,null,null,null,null,null,null,"GP1-23",4.9000000000000004,6.1,7.3,8.5,9.6999999999999993,10.9,12.1,null,23,1.4035461140000001]
[null,null,null,null,null,null,null,null,null,null,null,null,null,null,null,null,null,null,null,null,null,null,null,"GP1-41",8.6999999999999993,10.8,13,15.2,17.3,19.5,21.6,null,41,2.440949764]
[null,null,null,null,null,null,null,null,null,null,null,null,null,null,null,null,null,null,null,null,null,null,null,"GP1-60",12.7,15.8,19,22.1,25.3,28.5,null,null,60,3.6614246459999999]
[null,null,null,null,null,null,null,null,null,null,null,null,null,null,null,null,null,null,null,null,null,null,null,"GP1-80",16.899999999999999,21.1,25.3,29.6,33.799999999999997,null,null,null,80,4.8818995279999999]

{"sheet":"VP1 Pump","index":4,"n_rows":34,"n_cols":6,"rows_kept":34,"cut":false,"hidden":false,"merged":[[9,2,9,3],[0,0,1,6],[7,2,7,3],[7,4,7,5],[8,2,8,3],[8,4,8,5],[33,1,38,5],[16,2,16,5],[17,2,17,5],[18,2,18,5],[19,2,19,5],[20,1,20,5],[21,1,21,5]]}
["Parker VP1 Variable Displacement Pumps"]
[]
[null,"Specifications"]
[null,"Frame Size VP1 - ","VP1 - 045","VP1 - 075","VP1 - 095","VP1 - 130"]
[null,"Variant","HPE-V45","HPE-V75","HPE-V95","HPE-V130"]
[null,"Displacement [cm3/rev]",45,75,95,130]
[null,"Max operating Pressure PSI / [bar]"]
[null,"Continous","5076 / [350]",null,"5801 / [400]"]
[null,"Intermittent 1)","5801 / [400]",null,"6092 / [420]"]
[null,"Mass moment of inertia J [kgm2]","[0.00606]",null,"[0.00681]","[0.00690]"]
[null,"Selfpriming Speed 2) [RPM]"]
[null,"2\" Suction Line, max",2200,1700,1250,900]
[null,"2 1/2\" Suction Line, max",2400,2100,1750,1300]
[null,"3\" Suction Line, max","-","-",2200,1900]
[null,"Max Speed unloaded [RPM]"]
[null,"(in bypass mode, no flow)",3000,3000,3000,3000]
[null,"Control Type","Load Sensing (LS)"]
[null,"Shaft end spline","DIN 5462"]
[null,"Mounting flange","ISO 7653 - 1985"]
[null,"Weight (with control)  LBS / [kg]","59.5 / 27"]
[null,"1) Maximum 6 seconds in any one minute"]
[null,"2) At an inlet pressure of 14.5 PSI / 1 [Bar] (abs) with mineral oil at a viscosity of 30 mm2/s (cSt)."]
[]
[]
[]
[]
[]
[]
[]
[]
[]
[]
[]
[null,"For more Detailed Information and Specifications on the Parker VP1 Hydraulic Pumps and the Load Sensing Features as well as all the Parker Products and Services.                                       Contact Parker Hanifin Americas USA, Canada, Mexico 1-800-272-7537 or visit the Parker Hanifin Website at www.parker.com"]

{"sheet":"Pump Part Numbers","index":5,"n_rows":45,"n_cols":8,"rows_kept":45,"cut":false,"hidden":false,"merged":[[0,0,0,8],[7,6,7,7],[8,6,23,9],[38,1,38,3],[7,1,7,3],[15,1,15,3],[31,1,31,4],[33,5,36,5],[33,4,34,4],[35,4,36,4]]}
["Volvo PTOs and Hydraulic Pump Part Numbers"]
[null,"PTO Type","PTR-FL","PTR-DM","PTRD-D","PTRD-F","PTRD-D1","PTRD-D2"]
[null,"Sales Code","T4XAKX","T4XDMX","T4XG1X","T4XF1X","T4XH1X","T4XJ1X"]
[null,"Part No.",22770442,22770448,21309472,21309308,21309477,21309495]
[null,"Installation  Kit",85135639,85135639,85135639,85135639,"85135639          21229045","85135639         21229045"]
[]
[]
[null,"Parker Gear Pumps",null,null,null,null,"Notes"]
[null,"Model","Parker Part No.","Volvo Part No."]
[null,"GP1-23",3789383,22045713]
[null,"GP1-41",3789384,22045714]
[null,"GP1-60",3789385,22045715]
[null,"GP1-80",3789386,22045716]
[null,"GP1-100",3784184,22725227]
[]
[null,"Parker Bent Axial Piston Fixed Pumps"]
[null,"Model","Parker Part No.","Volvo Part No."]
[null,"F1-25R",3781524,20455918]
[null,"F1-41R",3781540,20392941]
[null,"F1-51R",3781550,20392942]
[null,"F1-61R",3781560,20392943]
[null,"F1-81R",3781580,20392944]
[null,"F1-101R",3781600,20392945]
[null,"F2-42/42R",3785783,20909025]
[null,"F2-53/53R",3783573,20458341]
[]
[]
[]
[null,null,null,null,null,null,null,"Click Here for Fitting Information"]
[]
[null,null,null,null,null,null,"Repto Harness p/n ","20917033 Single"]
[null,"F1 - Series Bypass Valve",null,null,null,"SOLENOID, 12V",null,"20917034 Double "]
[null,"Model","Application","Parker Part No.","Volvo Part No.","SOLENOID "]
[null,"BPV-F1-25","F1-25",3787712,21230082," Volvo P/N \n20375467\nParker P/N \n3780818"]
[null,"BPV-F1-25","F1-41, F1-51.F1-61",3787047]
[null,"BPV-F1-81","F1-81, F1-101",3787048,21230083]
[null,"BPV-F2","F2-42, F2-53",3781851]
[]
[null,"Parker Specality pumps "]
["Mounting","Model ","Parker Part No.","Volvo Part No. ","Description "]
["TM","G102",3089310913,22745915,"Dump Pump "]
["REPTO","VP1-45","3089310047T",20588528,"Variable Piston pump "]
["REPTO","VP1-75","3089310416T",20588529,"Variable Piston pump "]
["REPTO","VP1-130",null,20588530,"Variable Piston pump "]
[null,null,null,22049071]

{"sheet":"REPTO","index":6,"n_rows":48,"n_cols":14,"rows_kept":48,"cut":false,"hidden":false,"merged":[[41,7,41,10],[42,7,42,10],[43,7,43,10],[47,1,47,3],[20,10,27,10],[20,1,23,1],[20,7,23,7],[24,0,27,0],[24,1,27,1],[24,7,27,7],[29,0,29,4],[40,7,40,10],[20,8,27,8],[20,9,27,9],[12,10,19,10],[16,0,19,0],[16,1,19,1],[16,7,19,7],[12,8,19,8],[12,9,19,9],[1,0,1,7],[2,8,2,10],[3,0,6,0],[3,1,6,1],[3,5,27,5],[3,7,6,7],[3,8,11,8],[3,9,11,9],[3,10,11,10],[7,0,11,0],[7,1,11,1],[7,7,11,7],[12,0,15,0],[12,1,15,1],[12,7,15,7],[20,0,23,0]]}
[]
["Rear Engine Power Take-Off (REPTO)"]
["Engine","Drive Type","Part Number","Description","QTY","Rotation","Ratio","Max HP","Torque"]
["11L","DIN 5462",21909758,"REPTO Unit",1,"Same as Engine Rotation CCW",null,"250 HP Maximum","740/480","480/650","148/211"]
[null,null,976068,"O-Ring",1]
[null,null,984850,"Bolt",2]
[null,null,984820,"Bolt",2,null,1.08]
["11L","SAE 1400",21912452,"REPTO Unit",1,null,null,"250 HP Maximum"]
[null,null,976068,"O-Ring",1]
[null,null,984850,"Bolt",2]
[null,null,984820,"Bolt",2]
[null,null,2334592,"New REPTO ",null,null,1.26]
["13L","DIN 5462",21912752,"REPTO Unit",1,null,null,"250 HP Maximum","740/480","480/650","221/300"]
[null,null,976068,"O-Ring",1]
[null,null,984850,"Bolt",2,null,null,null,null,null,null,null,null,"DIN Drive"]
[null,null,984820,"Bolt",2,null,1.26]
["13L","SAE 1400",21913220,"REPTO Unit",1,null,null,"250 HP Maximum"]
[null,null,976068,"O-Ring",1]
[null,null,984850,"Bolt",2]
[null,null,984820,"Bolt",2]
["16L","DIN 5462",21912752,"REPTO Unit",1,null,null,"250 HP Maximum","740/480","480/650","?"]
[null,null,976068,"O-Ring",1]
[null,null,984850,"Bolt",2]
[null,null,984820,"Bolt",2,null,1.26]
["16L","SAE 1400",21913220,"REPTO Unit",1,null,null,"250 HP Maximum"]
[null,null,976068,"O-Ring",1]
[null,null,984850,"Bolt",2]
[null,null,984820,"Bolt",2]
[null,null,null,null,null,null,null,null,"0-3","<3>",">3","\"=VS\"",null,"SAE 1400 Flange"]
["Misc. REPTO Information",null,null,null,null,null,null,null,"Torque \"=\" lb.ft. / Nm "]
[null,"Technical Reg.",20538824]
[null,"Drive Type","Part No."]
[null,"SAE 1410 Flange",1667973]
[null,"SAE 1300 Flange",1526019]
[null,"Square Flange",21264675]
[null,"100 Flange",20738739]
[]
[]
[]
[]
[]
[]
[]
[null,null,null,null,null,null,null,"SAE 1400 Flange Dimensions"]
[]
[]
[]
[null,"SAE 1300 Flange Dimensions"]

{"sheet":"Fitting Info","index":7,"n_rows":83,"n_cols":10,"rows_kept":83,"cut":false,"hidden":false,"merged":[[4,3,5,3],[6,3,7,3],[4,4,7,4],[2,1,2,4],[61,1,61,5],[16,7,16,11],[58,1,58,5],[50,1,50,5],[33,1,33,5],[35,1,35,5],[42,1,42,5],[26,1,26,6],[74,7,75,7],[74,8,75,8],[73,3,73,8],[72,6,72,7],[74,1,74,2],[74,3,75,3],[74,4,75,4],[74,5,75,5],[74,6,75,6]]}
[]
[]
[null,"GP1 Pump Feed Fittings"]
[null,"Model","Pump  Part No. ","Suction Fitting","Assy. Req."]
[null,"GP1-23",22045713,22045739,22112485]
[null,"GP1-41",22045714]
[null,"GP1-60",22045715,22045741]
[null,"GP1-80",22045716]
[]
[]
[]
[]
[]
[]
[]
[null,null,null,null,null,null,null,null,null,"F1- 81/101 Seriers Pumps"]
[null,null,null,null,null,null,null,"British Standard Pipe"]
[]
[]
[]
[]
[]
[]
[]
[]
[]
[null,"GP1 Pump Feed Fitting / Dimensions"]
[null,"Volvo Part No.","Size","Dim. A","Dim. B","Dim. C","Parker Pt. No."]
[null,22045739,"3/4\" ~ 1 ½\"","3/4\"","1 ½\"",18,3789390]
[null,22045741,"1 ¼\" ~ 2\"","1 ¼\"","2\"",18,3789391]
[]
[]
[]
[null,"F1 Pump Feed Fittings / Dimensions"]
[]
[null,"Straight Fitting"]
[null,"Volvo Part No.","Dim. A  mm","Dim. B  mm","Dim. C  In (mm)","Parker Pt. No."]
[null,null,0,85,"1½\"  (38)","378 0635"]
[null,85100131,17,136,"2\" (50)","378 0636"]
[null,null,25,145,"2½\"  (63)","378 0637"]
[null,null,32,174,"3\" (75)","378 3523"]
[]
[null,"45° Fitting"]
[null,"Volvo Part No.","Dim. A mm","Dim. B in (mm)","Dim. C in (mm)","Parker Pt. No."]
[null,null,60,104,"1¼\"  (32)","378 1234"]
[null,null,60,104,"1½\"  (38)","378 0633"]
[null,85100585,67,110,"2\"  (50)","378 0364"]
[null,20724561,75,117,"2½\"  (63)","378 0634"]
[null,null,95,138,"3\" (75)","378 3367"]
[]
[null,"90° Fitting"]
[null,"Volvo Part No.","Dim. A  mm","Dim. B mm ","Dim. C in (mm)","Parker Pt. No."]
[null,null,126,83,"1½\"  (38)","378 0978"]
[null,85114334,135,83,"2\"  (50)","378 0979"]
[null,85114335,147,83,"2½\"  (63)","378 1980"]
[null,null,135,83,45,"378 0976"]
[null,null,185,83,"3\" (75)","378 8690"]
[]
[null,"145° Fitting"]
[null,"Volvo Part No.","Dim. A  mm","Dim. B mm ","Dim. C in (mm)","Parker Pt. No."]
[null,null,165,73,"2\" (50)","378 1867"]
[null,"JIS Adaptor BSPP- 1 1/16 in JIS "]
[null,"Volvo Part No.","des","Dim. B mm ","Dim. C in (mm)","BSPP size"]
[null,21142223,"straight",53,null,1]
[null,21142224,"straight",48,null,0.75]
[]
[]
[]
[null,"NOTE: Parker P/N's are from Parker European division "]
[]
[]
[]
[null,"Feed line sizing guide",null,"F1-25","F1-41","F1-61","F1-81",null,"F1-101"]
[null,null,null,"Inlet feed Size (in)"]
[null,"Flow rate ",null,1,1.25,1.5,2,2.5,3]
[null,"GPM","LPM"]
[null,6.6,25,0.8,0.5,0.4,0.2,0.1,0.1]
[null,13.2,50,1.7,1,0.7,0.4,0.3,0.2]
[null,19.8,75,2.5,1.6,1.1000000000000001,0.6,0.4,0.3]
[null,26.4,100,3.4,2.1,1.5,0.8,0.5,0.4]
[null,39.6,150,null,3.1,2.2000000000000002,1.3,0.8,0.5]
[null,52.8,200,null,null,2.9,1.6,1.1000000000000001,0.7]
[null,66,250,null,null,null,2.1,1.3,0.9]

{"sheet":"I - Shift Ratio","index":8,"n_rows":24,"n_cols":15,"rows_kept":24,"cut":false,"hidden":false,"merged":[[28,0,28,1],[3,13,3,14],[1,5,2,11],[4,9,4,11],[5,1,5,3],[5,5,5,7]]}
[]
[null,null,null,null,null,"I - Shift HD Gear Ratios"]
[]
[null,null,null,null,null,null,null,null,null,null,null,null,null,"I-Shift HD 14 Speed"]
[null,null,null,null,null,null,null,null,null,"I - Shift HD 13 Speed",null,null,null,"Gear","OD"]
[null,"I - Shift",null,null,null,"I - Shift HD",null,null,null,"Gear","Direct","OD",null,"C1",32.036999999999999]
[null,"Gear","Direct","OD",null,"Gear","Direct","OD",null,"C",19.376000000000001,17.544,null,"C2",19.376000000000001]
[null,"1st",14.941000000000001,11.728999999999999,null,"1st",14.941000000000001,11.728999999999999,null,"1st",14.941000000000001,11.728999999999999,null,"1st",11.728999999999999]
[null,"2nd",11.728999999999999,9.2110000000000003,null,"2nd",11.728999999999999,9.2110000000000003,null,"2nd",11.728999999999999,9.2110000000000003,null,"2nd",9.2110000000000003]
[null,"3rd",9.0359999999999996,7.0940000000000003,null,"3rd",9.0359999999999996,7.0940000000000003,null,"3rd",9.0359999999999996,7.0940000000000003,null,"3rd",7.0940000000000003]
[null,"4th",7.0940000000000003,5.5709999999999997,null,"4th",7.0940000000000003,5.5709999999999997,null,"4th",7.0940000000000003,5.5709999999999997,null,"4th",5.5709999999999997]
[null,"5th",5.5380000000000003,4.3479999999999999,null,"5th",5.5380000000000003,4.3479999999999999,null,"5th",5.5380000000000003,4.3479999999999999,null,"5th",4.3479999999999999]
[null,"6th",4.3479999999999999,3.4140000000000001,null,"6th",4.3479999999999999,3.4140000000000001,null,"6th",4.3479999999999999,3.4140000000000001,null,"6th",3.4140000000000001]
[null,"7th",3.4359999999999999,2.698,null,"7th",3.4359999999999999,2.698,null,"7th",3.4359999999999999,2.698,null,"7th",2.698]
[null,"8th",2.698,2.1179999999999999,null,"8th",2.698,2.1179999999999999,null,"8th",2.698,2.1179999999999999,null,"8th",2.1179999999999999]
[null,"9th",2.0779999999999998,1.6319999999999999,null,"9th",2.0779999999999998,1.6319999999999999,null,"9th",2.0779999999999998,1.6319999999999999,null,"9th",1.6319999999999999]
[null,"10th",1.6319999999999999,1.2809999999999999,null,"10th",1.6319999999999999,1.2809999999999999,null,"10th",1.6319999999999999,1.2809999999999999,null,"10th",1.2809999999999999]
[null,"11th",1.274,1.1000000000000001,null,"11th",1.274,1.1000000000000001,null,"11th",1.274,1.1000000000000001,null,"11th",1.1000000000000001]
[null,"12th",1.1000000000000001,0.78500000000000003,null,"12th",1.1000000000000001,0.78500000000000003,null,"12th",1.1000000000000001,0.78500000000000003,null,"12th",0.78500000000000003]
[]
[null,"R1",17.484999999999999,13.727,null,"R1",17.484999999999999,13.727,null,"RC",37.49,20.530999999999999,null,"RC",37.49]
[null,"R2",13.727,10.779,null,"R2",13.727,10.779,null,"R1",17.484999999999999,13.727,null,"R1",13.727]
[null,null,null,null,null,null,null,null,null,"R2",13.727,10.779,null,"R2",10.779]
[null,null,null,null,null,null,null,null,null,"R3",8.6229999999999993,null,null,"R3",8.6229999999999993]

{"sheet":"AMT-F","index":9,"n_rows":24,"n_cols":2,"rows_kept":24,"cut":false,"hidden":false,"merged":[[25,1,26,8],[11,1,12,8],[14,1,19,8],[1,1,2,7],[3,1,6,7],[7,1,8,8],[20,1,21,8],[23,1,23,8]]}
[]
[null,"I -Shift Version F"]
[]
[null,"Beginning January  2017 the I - Shift Version \"F\" was released into production.                                                                                                          There are several changes that will affect the PTO Set - up and Operation."]
[]
[]
[]
[null,"1. PTO 1 Air Solenoid is controlled by the VECU, it is no longer controlled by the TECU  "]
[]
[null,"2. PTO 2 Air Solenoid is controlled by the BBM it is no longer controlled by the TECU"]
[]
[null,"Trucks ordered without a Single PTO or PTO Prep Kit will require Accessory Kit 85137335 to be run using PTT after the PTO is instlled."]
[]
[]
[null,"Trucks ordered without a Double PTO or Double PTO Prep Kit will require Accessory Kit 85151840 to be run using PTT after the PTO is instlled.  On Chassis ordered without a Body Builder Module, the Body builder module will need to be installed and programmed using PTT. Then the Accessory Kit 85151840 be run after the BBM installation."]
[]
[]
[]
[]
[]
[null,"To \"Enable\" Paver Assist Feature, Set Parameter P1OM4 = True"]
[]
[]
[null,"To \"Enable\" Auto Neutral Feature, Set Parameter P1NFD = True"]

{"sheet":"Kit Contents","index":10,"n_rows":57,"n_cols":5,"rows_kept":57,"cut":false,"hidden":false,"merged":[[1,1,2,4],[24,1,25,4],[37,1,38,4],[46,1,47,4]]}
[]
[null,"Single Power Take - Off Installation Kit  85135639 Contents"]
[]
[null,"Item No.","Part Number","Qty.","Description"]
[null,1,1078315,1,"Solenoid Valve"]
[null,2,11994,1,"Gasket"]
[null,3,1655380,1,"Roller Bearing"]
[null,4,1655383,1,"Needle Roller assembly"]
[null,5,20566049,2,"Fitting straight"]
[null,6,20726050,1,"PTO Shaft"]
[null,7,23220187,1,"Bracket"]
[null,8,6795499,2,"Nipple"]
[null,9,8082135,1,"Fitting 90°"]
[null,10,20470615,1,"PTO# 1 Trans dash switch(old)"]
[null,11,85114473,1,"Tube"]
[null,12,914472,2,"Snap Ring"]
[null,13,984726,2,"Flange Screw"]
[null,14,"947099 / 1587176",1,"O-Ring"]
[null,15,994459,4,"Flange Screw"]
[null,16,11996,1,"Gasket"]
[null,17,21479808,1,"Nipple"]
[null,18,963948,1,"Nipple"]
[null,19,968061,1,"Pipe plug "]
[]
[null,"Double Power Take - Off Installation Kit  21229046 Contents"]
[]
[null,"Item No.","Part Number","Qty.","Description"]
[null,1,1078315,1,"Solenoid Valve"]
[null,2,21077545,1,"PTO# 2 Trans dash switch(old)"]
[null,3,968031,2,"Flange Screw M12*90"]
[null,4,965176,2,"Flange Screw M6*40"]
[null,5,949278,2,"Flange Lock Nut M6*7.3"]
[null,6,1589391,1,"Cone Washer Solenoid Valve"]
[null,7,946934,2,"Flange Screw M6*20"]
[null,8,965566,1,"Bracket PTRD-D2"]
[]
[]
[null,"New Interior switch part numbers"]
[]
[null,"Item No.","Part Number","Qty.","Description"]
[null,1,22542588,1,"PTO# 1 Trans dash switch "]
[null,2,22542590,1,"PTO# 2 Trans dash switch "]
[null,3,963948,1,"oil filter Fitting"]
[]
[]
[]
[null,"Part list for none Volvo PTO Installs "]
[]
[null,"Item No.","Part Number","Qty.","Description"]
[null,1,1078315,1,"Solenoid Valve"]
[null,2,22542588,1,"PTO# 1 Trans dash switch"]
[null,3,984726,2,"Flange Screw M6*20"]
[null,4,996110,1,"Pipe plug "]
[null,5,20566049,1,"Fitting straight"]
[null,6,8082135,1,"Fitting 90 degree"]
[null,7,945460,"?","air line"]
[null,8,23220187,1,"Trans Solenoid Bracket "]

{"sheet":"ES recomendations","index":11,"n_rows":0,"n_cols":0,"rows_kept":0,"cut":false,"hidden":false,"merged":[]}

{"sheet":"VECU5","index":12,"n_rows":30,"n_cols":4,"rows_kept":30,"cut":false,"hidden":false,"merged":[[30,2,30,8],[1,1,2,9],[3,2,4,8],[5,2,7,8],[19,2,19,8],[20,2,20,8],[21,3,21,7],[22,3,22,5],[23,3,23,5],[24,2,24,7],[25,3,28,7],[29,2,29,8]]}
[]
[null,"VECU5 Starting January 2021 Model Year 2022 VIN's 10 Digit \"N\""]
[]
[null,null,"With new Emission Guidelines and the need for more VECU Memory a New VECU was introduced"]
[]
[null,null,"The VECU5 has brought Significant Changes to the Mack Electronic Architecture:"]
[]
[]
[]
[]
[]
[]
[]
[]
[]
[]
[]
[]
[null,null,"1. Increased Internal Memory"]
[null,null,"2. PTO 2 Control moved back to the VECU, Does not require a BBM"]
[null,null,"3. New Connectors "]
[null,null,null,"Connector \"A\" 30 Pin Green (Same as VECU4)"]
[null,null,null,"Connector \"B\" 20 Pin Gray"]
[null,null,null,"Connector \"C\" 40 Pin Black"]
[null,null,"4. Alpha Parameters replaced by Diagnostic Object IDs (DOIDS) "]
[null,null,null,"Examples:                                                                                                      BXB - PTO Priority replaced by P1WHS                                                                      FFA is now part of  P1TQX  an Array that contains the following Alpha Parameters: BYA, BYJ, FFA and FZI                                                             "]
[]
[]
[]
[null,null,"Reference the Volvo Trucks Body Builder Manuals for  PTO Programming"]

{"sheet":"BBM","index":13,"n_rows":46,"n_cols":16,"rows_kept":46,"cut":false,"hidden":false,"merged":[[25,13,25,14],[28,13,29,14],[28,15,29,15],[44,11,44,15],[45,11,45,15]]}
[]
[]
[]
[]
[]
[]
[]
[]
[]
[]
[]
[]
[]
[null,null,null,null,null,null,null,null,null,null,null,"Pin","Pin Name/Description","I/O","Type","Comment"]
[null,null,null,null,null,null,null,null,null,null,null,"A1","Engine speed","Input","Active High"]
[null,null,null,null,null,null,null,null,null,null,null,"A2","Remote PTO Spd INC","Input","Active High"]
[null,null,null,null,null,null,null,null,null,null,null,"A3","PTO Mode 3","Input","Active High"]
[null,null,null,null,null,null,null,null,null,null,null,"A4","PTO Mode 1","Input","Active High"]
[null,null,null,null,null,null,null,null,null,null,null,"A5","PTO Mode 4","Input","Active High"]
[null,null,null,null,null,null,null,null,null,null,null,"A6","Engine Shutdown, N.O. Sw","Input","No Switch to V+","Always enabled in software; closing switch causes engine shutdown"]
[null,null,null,null,null,null,null,null,null,null,null,"A7","ESM Resume Switch","Input","Active High"]
[null,null,null,null,null,null,null,null,null,null,null,"A8","Auto neutral","Input","Active High"]
[null,null,null,null,null,null,null,null,null,null,null,"A9","Extra Gear lever forward","Input","Active High"]
[null,null,null,null,null,null,null,null,null,null,null,"A10","Extra gear lever neutral","Input","Active High"]
[null,null,null,null,null,null,null,null,null,null,null,"A11","PTO output indicator","Output","Active Lo"]
[null,null,null,null,null,null,null,null,null,null,null,"A12","ECU Ground","ECU Main Power Ground"]
[null,null,null,null,null,null,null,null,null,null,null,"A13","ECU Battery","Input","ECU Main Power"]
[null,null,null,null,null,null,null,null,null,null,null,"A14","Engine speed limit","Input","Active High"]
[null,null,null,null,null,null,null,null,null,null,null,"A15","CAN2-High (Body Builder)","Bidirectional Databus",null,"J1939 Databus for use by body builder only (limited to certain parameters/authority).   See \"Multiplexing Body Builder DL5 J11939 Can\", page 52 for availible messages"]
[null,null,null,null,null,null,null,null,null,null,null,"A16","CAN2-Low (Body Builder)"]
[null,null,null,null,null,null,null,null,null,null,null,"A17","PTO Mode 2","Input","Active High"]
[null,null,null,null,null,null,null,null,null,null,null,"A18","PTO3 Dash Sw","Input","Active High"]
[null,null,null,null,null,null,null,null,null,null,null,"A19","PTO4 Dash Sw","Input","Active High"]
[null,null,null,null,null,null,null,null,null,null,null,"A20","Extra Gear lever reverse","Input","Active High"]
[null,null,null,null,null,null,null,null,null,null,null,"A21","Start request from chassis","Input","Active High"]
[null,null,null,null,null,null,null,null,null,null,null,"A22","EOL enable","EOL"]
[null,null,null,null,null,null,null,null,null,null,null,"A23","Split box","Input","Active High"]
[null,null,null,null,null,null,null,null,null,null,null,"A24","Neutral Gear Input","Input","Active High"]
[null,null,null,null,null,null,null,null,null,null,null,"A25","Engine Torque Limit 1","Input","Active Low"]
[null,null,null,null,null,null,null,null,null,null,null,"A26","Road Speed Limit 2","Input","Active Low"]
[null,null,null,null,null,null,null,null,null,null,null,"A27","Engine Shutdown, N.C. Sw","Input","NC Switch to Ground","Must be enabled in software; Opening switch causes shutdown"]
[null,null,null,null,null,null,null,null,null,null,null,"A28","Low Split Input","Input","Active Low"]
[null,null,null,null,null,null,null,null,null,null,null,"A29","Road speed Limit 3","Input","Active High"]
[null,null,null,null,null,null,null,null,null,null,null,"A30","Spare","Input","Active High"]
[null,null,null,null,null,null,null,null,null,null,null,"1 - NEUTRAL GEAR and LOW SPLIT inputs are used as programmable lock-outs for PTO engagement. If a corresponding databus message is available (J1939 ETC2 from trans.), the databus message will have priority over the input pin."]
[null,null,null,null,null,null,null,null,null,null,null,"2 - SPLIT BOX input is usable for split-shaft PTOs; it allows a temporary override of the normal road speed limit, so long as the park brake is set. Without this input, engine speed / power may be limited because the ECU thinks the vehicle is moving when it sees transmission output shaft activity"]

{"sheet":"Early Gen II PTO Switches","index":14,"n_rows":12,"n_cols":9,"rows_kept":12,"cut":false,"hidden":false,"merged":[[11,0,11,11],[2,0,10,3],[2,4,10,7],[2,8,10,11],[0,0,0,11],[1,0,1,11]]}
["Installing PTO Swithes and BBM"]
["To install PTO on Volvos that were ordered without PTO Perp kit you will need to follow the instructions in the links. "]
["Installation instructions to wire in PTO#1 switch for\nVolvo with modular harness",null,null,null,"Installation instructions to wire in a single PTO on the PTO# 2 Circuit for Volvo with Modular Harness and a BBM but NOT ordered with a transmisson mounted PTO",null,null,null,"Installation instructions to wire in dual PTOs for Volvo with Modular Harness and NO BBM"]
[]
[]
[]
[]
[]
[]
[]
[]
["These apply to Gen II iteriors "]

{"sheet":"D & F","index":15,"n_rows":2,"n_cols":2,"rows_kept":2,"cut":false,"hidden":false,"merged":[[1,1,4,14]]}
[]
[null,"I-Shift Design & Function"]

{"sheet":"Bezares","index":16,"n_rows":50,"n_cols":17,"rows_kept":50,"cut":false,"hidden":false,"merged":[[47,1,47,4],[48,1,48,4],[49,1,49,4],[38,5,39,5],[38,6,39,6],[42,1,42,4],[43,1,43,4],[44,1,44,4],[45,1,45,4],[46,1,46,4],[38,7,39,7],[38,8,39,8],[38,9,39,9],[38,0,39,0],[38,1,39,1],[38,2,39,2],[38,3,39,3],[38,4,39,4],[0,0,0,16],[34,0,35,0],[34,1,35,1],[34,2,35,2],[34,3,35,3],[34,4,35,4],[34,5,35,5],[34,6,35,6],[34,7,35,7],[34,8,35,8],[34,9,35,9],[31,0,31,9],[32,0,32,9],[29,3,29,16],[28,9,28,10],[18,15,21,15],[27,15,28,15],[27,16,28,16],[18,1,29,1],[18,2,29,2],[22,3,23,3],[22,4,23,4],[27,3,28,3],[27,4,28,4],[18,16,21,16],[22,15,23,15],[22,16,23,16],[24,15,26,15],[24,16,26,16],[7,15,8,15],[9,15,11,15],[12,15,13,15],[7,16,8,16],[9,16,11,16],[12,16,13,16],[16,8,17,8],[16,9,17,9],[16,15,17,15],[16,16,17,16],[13,9,13,10],[16,10,17,10],[16,11,17,11],[16,12,17,12],[16,13,17,13],[16,14,17,14],[16,3,17,3],[16,4,17,4],[16,5,17,5],[16,6,17,6],[16,7,17,7],[1,16,2,16],[3,2,14,2],[1,6,2,6],[1,7,2,7],[1,8,2,8],[1,9,2,9],[1,10,2,10],[1,11,2,11],[1,5,2,5],[3,15,6,15],[3,16,6,16],[7,3,8,3],[12,3,13,3],[14,3,14,16],[1,12,2,12],[1,13,2,13],[31,12,31,15],[32,13,33,15],[32,12,33,12],[1,0,2,0],[1,1,2,1],[1,2,2,2],[1,3,2,3],[1,4,2,4],[3,1,14,1],[1,14,2,14],[1,15,2,15],[7,4,8,4],[12,4,13,4],[16,0,17,0],[16,1,17,1],[16,2,17,2]]}
["Bezares USA PTO Information"]
["Volvo Transmission","Model Number","Discription","PTO","Weight","Engine % Low","Engine % HI","Shaft Rotation","Shift Type","Torque","HP@1000","Output Type","Note","Note","Note","Accessory Kit AMT-D","Accesorry Kit AMT-F"]
[]
["Rear Countershatft","AT2612","I-Shift Direct Drive","1197K03","28 lbs.",0.91,1.17,"Crank","Air","361 Lb. Ft.",59,"DIN 5462","116504 Input Shaft",null,null,85137335,85137335]
[null,"AT2112",null,"1198K03","30 lbs.",0.92,1.19,"Crank","Air","310 Lb. Ft.",42,"DIN 5462","116504 Input Shaft",null,"Wet Spline"]
[null,"AT2112",null,"11100K03","30 lbs.",1.2,1.55,"Crank","Air","332 Lb. Ft.",46,"DIN 5462","116504 Input Shaft"]
[null,"AT2112",null,"11106K03","40 lbs.",1.1299999999999999,1.46,"Crank","Air","413 Lb. Ft.",57,"DIN 5462","116504 Input Shaft",null,"Wet Spline"]
[null,"AT2112",null,"11107K___","66 lbs.","(1) 59%","(1) 129%","Crank","Air","332 Lb Ft.",64,"DIN 5462","116504 Input Shaft","Shaft 1","Wet Spline",85140256,85151840]
[null,"AT2112",null,null,null,"(2) 76%","(2) 166%","OPP","Air","369 Lb. Ft.",71,"DIN 5462",null,"Shaft 2","Wet Spline"]
[null,"AT2112",null,"11105K03","25 lbs.",1.1299999999999999,1.43,"Crank","Air","310 Lb. Ft. ",42,"DIN 5462","116504 Input Shaft",null,"Wet Spline",85137335,85137335]
[null,"AT2112",null,"11103K03","51 lbs.",0.95,1.22,"Crank","Air","413 Lb. Ft.",57,"DIN 5462","Clutch Shift 1:1.35"]
[null,"AT2112",null,"1196K03","18 lbs.",0.7,0.9,"OPP","Air","609 Lb. Ft.",84,"DIN 5462","116504 Input Shaft",null,"Wet Spline"]
[null,"AT2112",null,"11109K52*","72 lbs","(1) 74%","(1) 93%","Crank","Air","413 Lb. Ft.",42,"1310 Flange","116504 Input Shaft","Shaft 1",null,85140256,85151840]
[null,"AT2112",null,null,null,"(2) 90%","(2) 114%","Crank","Air","361 Lb. Ft. combined",null,"1310 Flange",null,"Shaft 2"]
[null,"AT2112",null,"* NOTE Order Chassis with Direct Drive Transmsission (Low PTO Speed) and Spicer Driveline. The PTO Will Not Clear Meritor RPL25 Driveshaft "]
[]
["Volvo Transmission","Model Number","Discription","PTO","Weight","Engine % Low","Engine % HI","Shaft Rotation","Shift Type","Torque","HP@1000","Output Type","Note","Note","Note","Accessory Kit AMT-D","Accesorry Kit AMT-F"]
[]
["Rear Countershaft","ATO2612        ATO3112",null,"1197K03","28 lbs.",1.17,1.5,"Crank","Air","361 Lb. Ft.",59,"DIN 5462","116504 Input Shaft",null,null,85137335,85137335]
[null,null,null,"1198K03","30 lbs.",1.19,1.52,"Crank","Air","310 Lb. Ft.",42,"DIN 5462","116504 Input Shaft",null,"Wet Spline"]
[null,null,null,"11100K03","30 lbs.",1.55,1.98,"Crank","Air","332 Lb. Ft.",46,"DIN 5462","116504 Input Shaft"]
[null,null,null,"11106K03","40 lbs.",1.42,1.77,"Crank","Air","413 Lb. Ft.",57,"DIN 5462","116504 Input Shaft",null,"Wet Spline"]
[null,null,null,"11107K___","66 lbs.",0.76,0.97,"Crank","Air","332 Lb Ft.",64,"DIN 5462","116504 Input Shaft","Shaft 1","Wet Spline",85140254,85151840]
[null,null,null,null,null,1.66,2.12,"OPP","Air","369 Lb. Ft.",71,"DIN 5462",null,"Shaft 2","Wet Spline"]
[null,null,null,"11105K03","25 lbs.",null,null,"Crank","Air","310 Lb. Ft. ",42,"DIN 5462","116504 Input Shaft",null,"Wet Spline",85137335,85137335]
[null,null,null,"11103K03","51 lbs.",1.22,1.55,"Crank","Air","413 Lb. Ft.",57,"DIN 5462","Clutch Shift 1:1.35"]
[null,null,null,"1196K03","18 lbs.",0.9,1.5,"OPP","Air","609 Lb. Ft.",84,"DIN 5462","116504 Input Shaft",null,"Wet Spline"]
[null,null,null,"11109K52*","72 lbs",null,null,"Crank","Air","413 Lb. Ft.",42,"1310 Flange","116504 Input Shaft","Shaft 1",1310,85140254,85151840]
[null,null,null,null,null,null,null,"Crank","Air","361 Lb. Ft. combined",null,"1310 Flange",null,"Shaft 2",1310]
[null,null,null,"* NOTE Order Chassis with Direct Drive Transmsission (Low PTO Speed) and Spicer Driveline. The PTO Will Not Clear Meritor RPL25 Driveshaft "]
["Footnotes:"]
["1. If Hi/Lo speed option is required, chassis needs o be ordered with PTO Prep Package and Premuim Shifter.",null,null,null,null,null,null,null,null,null,null,null,"Part Numbers and Combinations"]
["2. Dealer must program the VECU(Vehicle Electronic Control Unit) for PTO operation when using Factory installed Prep Package ",null,null,null,null,null,null,null,null,null,null,null,"Sample Part No.","11107K _ _ _"]
[]
["Rear Engine PTO","(REPTO) ENGINE","OUTPUT","PART NO.","% ENGINE RPM",null,"ROTATION","SHIFT TYPE","TORQUE","HP",null,null,null,"Output 1","Output 2","Output 3"]
[null,null,null,null,null,null,null,null,null,null,null,null,"Null",0,0,0]
["Mounts to the rear of the trucks engine","MP 8","DIN 5462",7022904,1.26,null,"Crank","Constant Mesh","406 Lb. Ft.",64,null,null,"Flange SAE 1300",2,2,2]
[null,null,null,null,null,null,null,null,null,null,null,null,"DIN 5462",3,3,3]
["Reversing Gearbox","PTO INPUT","OUTPUT","PART NO.","% ENGINE RPM",null,null,"SHIFT TYPE","TORQUE","HP"]
[]
["Mounts to the rear of the trucks engine","Male Din 5462","Female DIN 5462",7012504,1.04,null,null,"Constant Mesh","301 Lb. Ft.",42]
[]
["ADAPTERS P/N","CONVERTS DIN 5462 PTO OUTPUT TO OTHER TYPES !"]
["AD7011104","DIN 5462 TO SAE \"C\" 4 bolt 1 1/4 inch 14 spline shaft"]
["AD7011104","DIN 5462 TO SAE \"B\" 2/4 bolt 7/8th 13 spline shaft"]
["AD 708804","DIN 5462 TO SAE \"BB\" 2/4 bolt 1 inch 15 spline shaft"]
["AD705304","DIN 5462 TO 1310 companion flange "]
["AD705404","DIN 5462 TO 1410 companion flange"]
["AD708104","DIN 5462 TO 1 1/4 inch keyed round shaft"]
["AD706504","DIN 5462 TO clutch unit air shift Din 5462 output"]

{"sheet":"ADAPTERS","index":17,"n_rows":13,"n_cols":8,"rows_kept":13,"cut":false,"hidden":false,"merged":[[12,1,12,4],[11,1,11,4],[0,5,1,5],[0,6,1,6],[0,7,1,7],[4,1,4,4],[5,1,5,4],[6,1,6,4],[7,1,7,4],[8,1,8,4],[9,1,9,4],[10,1,10,4],[0,0,1,0],[0,1,1,1],[0,2,1,2],[0,3,1,3],[0,4,1,4]]}
["REVERSING GEAR BOX","PTO INPUT","OUTPUT ","PART NO.","% Engine RPM","SHIFT TYPE","TORQUE","HP"]
[]
["Mounts to the output shaft of host PTO","MALE DIN 5462","FEMALE DIN 5462",7012504,1.04,"CONSTANT MESH","301 Lb. Ft",42]
["https://bezares.com/en-us/"]
["ADAPTERS P/N","CONVERTS DIN 5462 PTO OUTPUT TO OTHER TYPES !"]
["AD7011104","DIN 5462 TO SAE \"C\" 4 bolt 1 1/4 inch 14 spline shaft"]
["AD7011104","DIN 5462 TO SAE \"B\" 2/4 bolt 7/8th 13 spline shaft"]
["AD 708804","DIN 5462 TO SAE \"BB\" 2/4 bolt 1 inch 15 spline shaft"]
["AD705304","DIN 5462 TO 1310 companion flange "]
["AD705404","DIN 5462 TO 1410 companion flange"]
["AD708104","DIN 5462 TO 1 1/4 inch keyed round shaft"]
["AD706504","DIN 5462 TO clutch unit air shift Din 5462 output"]
["SP542","1/2\"  spacer, required to adapted most din mounts to a flange "]

{"sheet":"PERMCO","index":18,"n_rows":1014,"n_cols":708,"rows_kept":1014,"cut":false,"hidden":false,"merged":[[1,3,1,9],[30,2,30,3],[31,2,31,3],[32,2,32,3],[34,4,34,10],[13,4,13,5],[13,6,13,7],[8,4,8,5],[8,6,8,7],[9,4,9,5],[9,6,9,7],[10,4,10,5],[10,6,10,7],[5,4,5,5],[5,6,5,7],[6,4,6,5],[35,4,35,10],[4,3,4,9],[23,2,23,3],[24,2,24,3],[25,2,25,3],[27,2,27,3],[28,2,28,3],[29,2,29,3],[22,2,22,3],[14,4,14,5],[14,6,14,7],[17,2,17,13],[11,4,11,5],[11,6,11,7],[12,4,12,5],[12,6,12,7],[18,13,19,13],[20,2,20,3],[21,2,21,3],[18,2,19,3],[18,4,19,4],[18,5,19,5],[18,6,19,6],[18,7,19,7],[18,8,19,8],[18,9,18,10],[6,6,6,7],[7,4,7,5],[7,6,7,7],[18,11,19,11],[18,12,19,12]]}
[]
[null,null,null,"PERMCO Gear Pump Specifications"]
[]
[]
[null,null,null,"DIN 360 Series"]
[null,null,null,"Gear Size","Displ Cu.In.",null,"Theo. GPM @1000 RPM",null,"Max   RPM","Max             PSI"]
[null,null,null,0.5,1.8,null,7.8,null,2400,3500,null,null,null,null,null,null,null,null,null,null,null,null,null,null,null,null,{"$f":"D7","v":0.5},{"$f":"E7","v":1.8},null,7.8,null,2400,3500,null,null,null,"P5151C551AAXE15-5",3.86,"AL7"]
[null,null,null,0.75,2.7,null,11.7,null,2400,3500,null,null,"Gear Size",null,null,"Enter Gear Size",null,null,null,null,null,null,null,null,null,null,{"$f":"D8","v":0.75},2.7,null,11.7,null,2400,3500,null,null,null,"P5151C551AAXK17-5",4.5,"AL8"]
[null,null,null,1,3.6,null,15.6,null,2400,3500,null,null,"Pump Speed",null,null,"Enter RPM",null,null,null,null,null,null,null,null,null,null,1,3.6,null,15.6,null,2400,3500,null,null,null,"P5151C551AAXK20-5",5.15,"AL9"]
[null,null,null,1.25,4.5,null,19.5,null,2400,3500,null,null,"Displacement",null,{"$f":"IF(O8=AA7,AB7, IF(O8=AA8,AB8, IF(O8=AA9,AB9, IF(O8=AA10,AB10, IF(O8=AA11,AB11, IF(O8=AA12,AB12, IF(O8=AA13,AB13, IF(O8=AA14,AB14, IF(O8=AA15,AB15,)))))))))","v":0},"CU.IN./Rev",null,null,null,null,null,null,null,null,null,null,1.25,4.5,null,19.5,null,2400,3500,null,null,null,"P5151C551AAXQ22-5",5.7,"AL10"]
[null,null,null,1.5,5.4,null,23.4,null,2400,3500,null,null,"Theo. Pump Flow ",null,{"$f":"IF(O9=0,0,O9*O10/231)","v":0},"GPM",null,null,null,null,null,null,null,null,null,null,1.5,5.4,null,23.4,null,2400,3500,null,null,null,"P5151C551AAXQ25-5",6.43,"AL11"]
[null,null,null,1.75,6.3,null,27.3,null,2400,3500,null,null,null,null,null,null,null,null,null,null,null,null,null,null,null,null,1.75,6.3,null,27.3,null,2400,3500,null,null,null,"P5151C551AAXQ27-5",7.07,"AL12"]
[null,null,null,2,7.2,null,31.2,null,2400,3500,null,null,null,null,null,null,null,null,null,null,null,null,null,null,null,null,2,7.2,null,31.2,null,2400,3500,null,null,null,"P5151C551NMZE15-5",3.86,"AL13"]
[null,null,null,2.25,8.1,null,35.1,null,2400,3500,null,null,null,null,null,null,null,null,null,null,null,null,null,null,null,null,2.25,8.1,null,35.1,null,2400,3500,null,null,null,"P5151C551NMZK17-5",4.5,"AL14"]
[null,null,null,2.5,9,null,39,null,2400,3000,null,null,null,null,null,null,null,null,null,null,null,null,null,null,null,null,2.5,9,null,39,null,2400,3000,null,null,null,"P5151C551NMZK20-5",5.15,"AL15"]
[null,null,null,null,null,null,null,null,null,null,null,null,null,null,null,null,null,null,null,null,null,null,null,null,null,null,null,null,null,null,null,null,null,null,null,null,"P5151C551NMZQ22-5",5.7,"AL16"]
[null,null,null,null,null,null,null,null,null,null,null,null,null,null,null,null,null,null,null,null,null,null,null,null,null,null,null,null,null,null,null,null,null,null,null,null,"P5151C551NMZQ25-5",6.43,"AL17"]
[null,null,"DIN 5151 Series",null,null,null,null,null,null,null,null,null,null,null,null,null,null,null,null,null,null,null,null,null,null,null,null,null,null,null,null,null,null,null,null,null,"P5151C551NMZQ27-5",7.07,"AL18"]
[null,null,"Model #",null,"A","B","C","Displ Cu.In.","Theo. GPM @1000 RPM","NTP Ports",null,"Max RPM","Constant PSI","Max PSI"]
[null,null,null,null,null,null,null,null,null,"Side","Rear"]
[null,null,"P5151C551AAXE15-5",null,7.38,2.25,4.5,3.86,17,1,1.5,2400,2500,3000]
[null,null,"P5151C551AAXK17-5",null,7.63,2.5,4.63,4.5,19,1.25,1.5,2400,2500,3000,null,null,"5151 Pump Model",null,null,"Enter Model"]
[null,null,"P5151C551AAXK20-5",null,7.88,2.75,4.75,5.15,23,1.25,1.5,2400,2250,2500,null,null,"Pump Speed",null,null,"Enter RPM"]
[null,null,"P5151C551AAXQ22-5",null,8.1300000000000008,3,4.88,5.7,25,1.5,1.5,2000,2250,2500,null,null,"Displacement",null,{"$f":"IF(S22=AK7,AL7,IF(S22=AK8,AL8,IF(S22=AK9,AL9,IF(S22=AK10,AL10,IF(S22=AK11,AL11,IF(S22=AK12,AL12,IF(S22=AK13,AL13,IF(S22=AK14,AL14,IF(S22=AK15,AL15,IF(S22=AK16,AL16,IF(S22=AK17,AL17,IF(S22=AK18,AL18,))))))))))))","v":0},"CU.IN./Rev",null,null,null,null,null,null,null,{"$f":"IF(O8=\"0.5\",1.8, IF(O8=\"0.75\",2.7, IF(O8=\"1.00\",3.6, IF(O8=\"1.25\",4.5,IF(O8=\"1.50\",5.4, IF(O8=\"1.75\",6.3, IF(O8=\"2.00\",7.2, IF(O8=\"2.25\",8.1, IF(O8=\"2.50\",9,)))))))))","v":0}]
[null,null,"P5151C551AAXQ25-5",null,8.3800000000000008,3.25,5,6.43,27,1.5,1.5,1800,2250,2500,null,null,"Theo. Pump Flow ",null,{"$f":"IF(S23=0,0,S23*S24/231)","v":0},"GPM"]
[null,null,"P5151C551AAXQ27-5",null,8.6300000000000008,3.5,5.13,7.07,30,1.5,1.5,1800,2000,2000]
[]
[null,null,"P5151C551NMZE15-5",null,7.38,2.25,4.5,3.86,17,1,1.5,2400,2500,3000]
[null,null,"P5151C551NMZK17-5",null,7.63,2.5,4.63,4.5,19,1.25,1.5,2400,2500,3000]
[null,null,"P5151C551NMZK20-5",null,7.88,2.75,4.75,5.15,23,1.25,1.5,2400,2250,2500,null,null,null,null,null,null,null,null,null,null,null,null,null,null,null,"Pump Model",null,0.5,"Select Pump"]
[null,null,"P5151C551NMZQ22-5",null,8.1300000000000008,3,4.88,5.7,25,1.5,1.5,2000,2250,2500,null,null,null,null,null,null,null,null,null,null,null,null,null,null,null,"Pump Speed",null,null,"RPM"]
[null,null,"P5151C551NMZQ25-5",null,8.3800000000000008,3.25,5,6.43,27,1.5,1.5,1800,2250,2500,null,null,null,null,null,null,null,null,null,null,null,null,null,null,null,"Displacement",null,{"$f":"IF(AF30=\"0.50\",1.55, IF(AF30=\"F1-41\",2.48, IF(AF30=\"F1-61\",3.63, IF(AF30=\"F1-81\",4.98, IF(AF30=\"F1-101\",6.23,)))))","v":0},"CU.IN./Rev"]
[null,null,"P5151C551NMZQ27-5",null,8.6300000000000008,3.5,5.13,7.07,30,1.5,1.5,1800,2000,2000,null,null,null,null,null,null,null,null,null,null,null,null,null,null,null,"Pump Flow ",null,{"$f":"IF(AD36=0,0,AD36*AD37/231)","v":0},"GPM"]
[]
[null,null,null,null,"Part Number Coding (Single Unit)"]
[null,null,null,null,"       P           5151              C              551                AA               XE15      -         5"]
[null,null,null,null,"Pump Type","5151 Series","Continental Shaft","Shaft End Cover","Port End Cover","Gear Housing","Drive Shaft",null,null,null,null,null,null,null,null,null,null,null,null,null,null,null,null,null,null,"Select the Pump and enter the Pump Speed above for the GPM"]
[null,null,null,null,null,null,null,null,null,null,null,null,null,null,null,null,null,null,null,null,null,null,null,null,null,null,null,null,null,null,null,null,null,null,null,null,"\"=IF($S$22=\"P5151C551AAXE15-5\", IF($S$23>2400,TRUE,FALSE),FALSE)"]
[null,null,null,null,null,null,null,null,null,null,null,null,null,null,null,null,null,null,null,null,null,null,null,null,null,null,null,null,null,null,null,null,null,null,null,null,"\"=IF($S$22=\"P5151C551AAXK17-5\", IF($S$23>2400,TRUE,FALSE),FALSE)"]
[null,null,null,null,null,null,null,null,null,null,null,null,null,null,null,null,null,null,null,null,null,null,null,null,null,null,null,null,null,null,null,null,null,null,null,null,"\"=IF($S$22=\"P5151C551AAXK20-5\", IF($S$23>2400,TRUE,FALSE),FALSE)"]
[null,null,null,null,null,null,null,null,null,null,null,null,null,null,null,null,null,null,null,null,null,null,null,null,null,null,null,null,null,null,null,null,null,null,null,null,"\"=IF($S$22=\"P5151C551AAXQ25-2\", IF($S$23>2400,TRUE,FALSE),FALSE)"]
[null,null,null,null,null,null,null,null,null,null,null,null,null,null,null,null,null,null,null,null,null,null,null,null,null,null,null,null,null,null,null,null,null,null,null,null,"\"=IF($S$22=\"P5151C551AAXQ22-5\", IF($S$23>2000,TRUE,FALSE),FALSE)"]
[null,null,null,null,null,null,null,null,null,null,null,null,null,null,null,null,null,null,null,null,null,null,null,null,null,null,null,null,null,null,null,null,null,null,null,null,"\"=IF($S$22=\"P5151C551AAXQ25-5\", IF($S$23>1800,TRUE,FALSE),FALSE)"]
[null,null,null,null,null,null,null,null,null,null,null,null,null,null,null,null,null,null,null,null,null,null,null,null,null,null,null,null,null,null,null,null,null,null,null,null,"\"=IF($S$22=\"P5151C551AAXQ27-5\", IF($S$23>1800,TRUE,FALSE),FALSE)"]
[null,null,null,null,null,null,null,null,null,null,null,null,null,null,null,null,null,null,null,null,null,null,null,null,null,null,null,null,null,null,null,null,null,null,null,null,"\"=IF($S$22=\"P5151C551NMZE15-5\", IF($S$23>2400,TRUE,FALSE),TRUE)"]
[null,null,null,null,null,null,null,null,null,null,null,null,null,null,null,null,null,null,null,null,null,null,null,null,null,null,null,null,null,null,null,null,null,null,null,null,"\"=IF($S$22=\"P5151C551NMZK17-5\", IF($S$23>2400,TRUE,FALSE),FALSE)"]
[null,null,null,null,null,null,null,null,null,null,null,null,null,null,null,null,null,null,null,null,null,null,null,null,null,null,null,null,null,null,null,null,null,null,null,null,"\"=IF($S$22=\"P5151C551NMZK20-5\", IF($S$23>2400,TRUE,FALSE),FALSE)"]
[null,null,null,null,null,null,null,null,null,null,null,null,null,null,null,null,null,null,null,null,null,null,null,null,null,null,null,null,null,null,null,null,null,null,null,null,"\"=IF($S$22=\"P5151C551NMZQ22-5\", IF($S$23>2000,TRUE,FALSE),FALSE)"]
[null,null,null,null,null,null,null,null,null,null,null,null,null,null,null,null,null,null,null,null,null,null,null,null,null,null,null,null,null,null,null,null,null,null,null,null,"\"=IF($S$22=\"P5151C551NMZQ25-5\", IF($S$23>1800,TRUE,FALSE),FALSE)"]
[null,null,null,null,null,null,null,null,null,null,null,null,null,null,null,null,null,null,null,null,null,null,null,null,null,null,null,null,null,null,null,null,null,null,null,null,"\"=IF($S$22=\"P5151C551NMZQ27-5\", IF($S$23>1800,TRUE,FALSE),FALSE)"]
[]
[]
[]
[]
[]
[]
[]
[]
[]
[]
[]
[]
[]
[]
[]
[]
[]
[]
[]
[]
[]
[]
[]
[]
[]
[]
[]
[]
[]
[]
[]
[]
[]
[]
[]
[]
[]
[]
[]
[]
[]
[]
[]
[]
[]
[]
[]
[]
[]
[]
[]
[]
[]
[]
[]
[]
[]
[]
[]
[]
[]
[]
[]
[]
[]
[]
[]
[]
[]
[]
[]
[]
[]
[]
[]
[]
[]
[]
[]
[]
[]
[]
[]
[]
[]
[]
[]
[]
[]
[]
[]
[]
[]
[]
[]
[]
[]
[]
[]
[]
[]
[]
[]
[]
[]
[]
[]
[]
[]
[]
[]
[]
[]
[]
[]
[]
[]
[]
[]
[]
[]
[]
[]
[]
[]
[]
[]
[]
[]
[]
[]
[]
[]
[]
[]
[]
[]
[]
[]
[]
[]
[]
[]
[]
[]
[]
[]
[]
[]
[]
[]
[]
[]
[]
[]
[]
[]
[]
[]
[]
[]
[]
[]
[]
[]
[]
[]
[]
[]
[]
[]
[]
[]
[]
[]
[]
[]
[]
[]
[]
[]
[]
[]
[]
[]
[]
[]
[]
[]
[]
[]
[]
[]
[]
[]
[]
[]
[]
[]
[]
[]
[]
[]
[]
[]
[]
[]
[]
[]
[]
[]
[]
[]
[]
[]
[]
[]
[]
[]
[]
[]
[]
[]
[]
[]
[]
[]
[]
[]
[]
[]
[]
[]
[]
[]
[]
[]
[]
[]
[]
[]
[]
[]
[]
[]
[]
[]
[]
[]
[]
[]
[]
[]
[]
[]
[]
[]
[]
[]
[]
[]
[]
[]
[]
[]
[]
[]
[]
[]
[]
[]
[]
[]
[]
[]
[]
[]
[]
[]
[]
[]
[]
[]
[]
[]
[]
[]
[]
[]
[]
[]
[]
[]
[]
[]
[]
[]
[]
[]
[]
[]
[]
[]
[]
[]
[]
[]
[]
[]
[]
[]
[]
[]
[]
[]
[]
[]
[]
[]
[]
[]
[]
[]
[]
[]
[]
[]
[]
[]
[]
[]
[]
[]
[]
[]
[]
[]
[]
[]
[]
[]
[]
[]
[]
[]
[]
[]
[]
[]
[]
[]
[]
[]
[]
[]
[]
[]
[]
[]
[]
[]
[]
[]
[]
[]
[]
[]
[]
[]
[]
[]
[]
[]
[]
[]
[]
[]
[]
[]
[]
[]
[]
[]
[]
[]
[]
[]
[]
[]
[]
[]
[]
[]
[]
[]
[]
[]
[]
[]
[]
[]
[]
[]
[]
[]
[]
[]
[]
[]
[]
[]
[]
[]
[]
[]
[]
[]
[]
[]
[]
[]
[]
[]
[]
[]
[]
[]
[]
[]
[]
[]
[]
[]
[]
[]
[]
[]
[]
[]
[]
[]
[]
[]
[]
[]
[]
[]
[]
[]
[]
[]
[]
[]
[]
[]
[]
[]
[]
[]
[]
[]
[]
[]
[]
[]
[]
[]
[]
[]
[]
[]
[]
[]
[]
[]
[]
[]
[]
[]
[]
[]
[]
[]
[]
[]
[]
[]
[]
[]
[]
[]
[]
[]
[]
[]
[]
[]
[]
[]
[]
[]
[]
[]
[]
[]
[]
[]
[]
[]
[]
[]
[]
[]
[]
[]
[]
[]
[]
[]
[]
[]
[]
[]
[]
[]
[]
[]
[]
[]
[]
[]
[]
[]
[]
[]
[]
[]
[]
[]
[]
[]
[]
[]
[]
[]
[]
[]
[]
[]
[]
[]
[]
[]
[]
[]
[]
[]
[]
[]
[]
[]
[]
[]
[]
[]
[]
[]
[]
[]
[]
[]
[]
[]
[]
[]
[]
[]
[]
[]
[]
[]
[]
[]
[]
[]
[]
[]
[]
[]
[]
[]
[]
[]
[]
[]
[]
[]
[]
[]
[]
[]
[]
[]
[]
[]
[]
[]
[]
[]
[]
[]
[]
[]
[]
[]
[]
[]
[]
[]
[]
[]
[]
[]
[]
[]
[]
[]
[]
[]
[]
[]
[]
[]
[]
[]
[]
[]
[]
[]
[]
[]
[]
[]
[]
[]
[]
[]
[]
[]
[]
[]
[]
[]
[]
[]
[]
[]
[]
[]
[]
[]
[]
[]
[]
[]
[]
[]
[]
[]
[]
[]
[]
[]
[]
[]
[]
[]
[]
[]
[]
[]
[]
[]
[]
[]
[]
[]
[]
[]
[]
[]
[]
[]
[]
[]
[]
[]
[]
[]
[]
[]
[]
[]
[]
[]
[]
[]
[]
[]
[]
[]
[]
[]
[]
[]
[]
[]
[]
[]
[]
[]
[]
[]
[]
[]
[]
[]
[]
[]
[]
[]
[]
[]
[]
[]
[]
[]
[]
[]
[]
[]
[]
[]
[]
[]
[]
[]
[]
[]
[]
[]
[]
[]
[]
[]
[]
[]
[]
[]
[]
[]
[]
[]
[]
[]
[]
[]
[]
[]
[]
[]
[]
[]
[]
[]
[]
[]
[]
[]
[]
[]
[]
[]
[]
[]
[]
[]
[]
[]
[]
[]
[]
[]
[]
[]
[]
[]
[]
[]
[]
[]
[]
[]
[]
[]
[]
[]
[]
[]
[]
[]
[]
[]
[]
[]
[]
[]
[]
[]
[]
[]
[]
[]
[]
[]
[]
[]
[]
[]
[]
[]
[]
[]
[]
[]
[]
[]
[]
[]
[]
[]
[]
[]
[]
[]
[]
[]
[]
[]
[]
[]
[]
[]
[]
[]
[]
[]
[]
[]
[]
[]
[]
[]
[]
[]
[]
[]
[]
[]
[]
[]
[]
[]
[]
[]
[]
[]
[]
[]
[]
[]
[]
[]
[]
[]
[]
[]
[]
[]
[]
[]
[]
[]
[]
[]
[]
[]
[]
[]
[]
[]
[]
[]
[]
[]
[]
[]
[]
[]
[]
[]
[]
[]
[]
[]
[]
[]
[]
[]
[]
[]
[]
[]
[]
[]
[]
[]
[]
[]
[]
[]
[]
[]
[]
[]
[]
[]
[]
[]
[]
[]
[]
[]
[]
[]
[]
[]
[]
[]
[null,null,null,null,null,null,null,null,null,null,null,null,null,null,null,null,null,null,null,null,null,null,null,null,null,null,null,null,null,null,null,null,null,null,null,null,null,null,null,null,null,null,null,null,null,null,null,null,null,null,null,null,null,null,null,null,null,null,null,null,null,null,null,null,null,null,null,null,null,null,null,null,null,null,null,null,null,null,null,null,null,null,null,null,null,null,null,null,null,null,null,null,null,null,null,null,null,null,null,null,null,null,null,null,null,null,null,null,null,null,null,null,null,null,null,null,null,null,null,null,null,null,null,null,null,null,null,null,null,null,null,null,null,null,null,null,null,null,null,null,null,null,null,null,null,null,null,null,null,null,null,null,null,null,null,null,null,null,null,null,null,null,null,null,null,null,null,null,null,null,null,null,null,null,null,null,null,null,null,null,null,null,null,null,null,null,null,null,null,null,null,null,null,null,null,null,null,null,null,null,null,null,null,null,null,null,null,null,null,null,null,null,null,null,null,null,null,null,null,null,null,null,null,null,null,null,null,null,null,null,null,null,null,null,null,null,null,null,null,null,null,null,null,null,null,null,null,null,null,null,null,null,null,null,null,null,null,null,null,null,null,null,null,null,null,null,null,null,null,null,null,null,null,null,null,null,null,null,null,null,null,null,null,null,null,null,null,null,null,null,null,null,null,null,null,null,null,null,null,null,null,null,null,null,null,null,null,null,null,null,null,null,null,null,null,null,null,null,null,null,null,null,null,null,null,null,null,null,null,null,null,null,null,null,null,null,null,null,null,null,null,null,null,null,null,null,null,null,null,null,null,null,null,null,null,null,null,null,null,null,null,null,null,null,null,null,null,null,null,null,null,null,null,null,null,null,null,null,null,null,null,null,null,null,null,null,null,null,null,null,null,null,null,null,null,null,null,null,null,null,null,null,null,null,null,null,null,null,null,null,null,null,null,null,null,null,null,null,null,null,null,null,null,null,null,null,null,null,null,null,null,null,null,null,null,null,null,null,null,null,null,null,null,null,null,null,null,null,null,null,null,null,null,null,null,null,null,null,null,null,null,null,null,null,null,null,null,null,null,null,null,null,null,null,null,null,null,null,null,null,null,null,null,null,null,null,null,null,null,null,null,null,null,null,null,null,null,null,null,null,null,null,null,null,null,null,null,null,null,null,null,null,null,null,null,null,null,null,null,null,null,null,null,null,null,null,null,null,null,null,null,null,null,null,null,null,null,null,null,null,null,null,null,null,null,null,null,null,null,null,null,null,null,null,null,null,null,null,null,null,null,null,null,null,null,null,null,null,null,null,null,null,null,null,null,null,null,null,null,null,null,null,null,null,null,null,null,null,null,null,null,null,null,null,null,null,null,null,null,null,null,null,null,null,null,null,null,null,null,null,null,null,null,null,null,null,null,null,null,null,null,null,null,null,null,null,null,null,null,null,null,null,null,null,null,null,null,null,null,null,null,null,null,null,null,null,null,null,null,null,null,null,null,null,null,null,null,null,null,null,null,null,null,null,null,null,null,null,null,null,null,null,null,null,null,null,null,null,null,null,null,null,null,null,null,null,null,null,null,null,null,null,null,null,null,null,null,null,null,null,null,null,null,null,null,null,null,"Select"]
[null,null,null,null,null,null,null,null,null,null,null,null,null,null,null,null,null,null,null,null,null,null,null,null,null,null,null,null,null,null,null,null,null,null,null,null,null,null,null,null,null,null,null,null,null,null,null,null,null,null,null,null,null,null,null,null,null,null,null,null,null,null,null,null,null,null,null,null,null,null,null,null,null,null,null,null,null,null,null,null,null,null,null,null,null,null,null,null,null,null,null,null,null,null,null,null,null,null,null,null,null,null,null,null,null,null,null,null,null,null,null,null,null,null,null,null,null,null,null,null,null,null,null,null,null,null,null,null,null,null,null,null,null,null,null,null,null,null,null,null,null,null,null,null,null,null,null,null,null,null,null,null,null,null,null,null,null,null,null,null,null,null,null,null,null,null,null,null,null,null,null,null,null,null,null,null,null,null,null,null,null,null,null,null,null,null,null,null,null,null,null,null,null,null,null,null,null,null,null,null,null,null,null,null,null,null,null,null,null,null,null,null,null,null,null,null,null,null,null,null,null,null,null,null,null,null,null,null,null,null,null,null,null,null,null,null,null,null,null,null,null,null,null,null,null,null,null,null,null,null,null,null,null,null,null,null,null,null,null,null,null,null,null,null,null,null,null,null,null,null,null,null,null,null,null,null,null,null,null,null,null,null,null,null,null,null,null,null,null,null,null,null,null,null,null,null,null,null,null,null,null,null,null,null,null,null,null,null,null,null,null,null,null,null,null,null,null,null,null,null,null,null,null,null,null,null,null,null,null,null,null,null,null,null,null,null,null,null,null,null,null,null,null,null,null,null,null,null,null,null,null,null,null,null,null,null,null,null,null,null,null,null,null,null,null,null,null,null,null,null,null,null,null,null,null,null,null,null,null,null,null,null,null,null,null,null,null,null,null,null,null,null,null,null,null,null,null,null,null,null,null,null,null,null,null,null,null,null,null,null,null,null,null,null,null,null,null,null,null,null,null,null,null,null,null,null,null,null,null,null,null,null,null,null,null,null,null,null,null,null,null,null,null,null,null,null,null,null,null,null,null,null,null,null,null,null,null,null,null,null,null,null,null,null,null,null,null,null,null,null,null,null,null,null,null,null,null,null,null,null,null,null,null,null,null,null,null,null,null,null,null,null,null,null,null,null,null,null,null,null,null,null,null,null,null,null,null,null,null,null,null,null,null,null,null,null,null,null,null,null,null,null,null,null,null,null,null,null,null,null,null,null,null,null,null,null,null,null,null,null,null,null,null,null,null,null,null,null,null,null,null,null,null,null,null,null,null,null,null,null,null,null,null,null,null,null,null,null,null,null,null,null,null,null,null,null,null,null,null,null,null,null,null,null,null,null,null,null,null,null,null,null,null,null,null,null,null,null,null,null,null,null,null,null,null,null,null,null,null,null,null,null,null,null,null,null,null,null,null,null,null,null,null,null,null,null,null,null,null,null,null,null,null,null,null,null,null,null,null,null,null,null,null,null,null,null,null,null,null,null,null,null,null,null,null,null,null,null,null,null,null,null,null,null,null,null,null,null,null,null,null,null,null,null,null,null,null,null,null,null,null,null,null,null,null,null,null,null,null,null,null,null,null,null,null,null,null,null,null,null,null,null,null,null,null,null,null,0.5]
[null,null,null,null,null,null,null,null,null,null,null,null,null,null,null,null,null,null,null,null,null,null,null,null,null,null,null,null,null,null,null,null,null,null,null,null,null,null,null,null,null,null,null,null,null,null,null,null,null,null,null,null,null,null,null,null,null,null,null,null,null,null,null,null,null,null,null,null,null,null,null,null,null,null,null,null,null,null,null,null,null,null,null,null,null,null,null,null,null,null,null,null,null,null,null,null,null,null,null,null,null,null,null,null,null,null,null,null,null,null,null,null,null,null,null,null,null,null,null,null,null,null,null,null,null,null,null,null,null,null,null,null,null,null,null,null,null,null,null,null,null,null,null,null,null,null,null,null,null,null,null,null,null,null,null,null,null,null,null,null,null,null,null,null,null,null,null,null,null,null,null,null,null,null,null,null,null,null,null,null,null,null,null,null,null,null,null,null,null,null,null,null,null,null,null,null,null,null,null,null,null,null,null,null,null,null,null,null,null,null,null,null,null,null,null,null,null,null,null,null,null,null,null,null,null,null,null,null,null,null,null,null,null,null,null,null,null,null,null,null,null,null,null,null,null,null,null,null,null,null,null,null,null,null,null,null,null,null,null,null,null,null,null,null,null,null,null,null,null,null,null,null,null,null,null,null,null,null,null,null,null,null,null,null,null,null,null,null,null,null,null,null,null,null,null,null,null,null,null,null,null,null,null,null,null,null,null,null,null,null,null,null,null,null,null,null,null,null,null,null,null,null,null,null,null,null,null,null,null,null,null,null,null,null,null,null,null,null,null,null,null,null,null,null,null,null,null,null,null,null,null,null,null,null,null,null,null,null,null,null,null,null,null,null,null,null,null,null,null,null,null,null,null,null,null,null,null,null,null,null,null,null,null,null,null,null,null,null,null,null,null,null,null,null,null,null,null,null,null,null,null,null,null,null,null,null,null,null,null,null,null,null,null,null,null,null,null,null,null,null,null,null,null,null,null,null,null,null,null,null,null,null,null,null,null,null,null,null,null,null,null,null,null,null,null,null,null,null,null,null,null,null,null,null,null,null,null,null,null,null,null,null,null,null,null,null,null,null,null,null,null,null,null,null,null,null,null,null,null,null,null,null,null,null,null,null,null,null,null,null,null,null,null,null,null,null,null,null,null,null,null,null,null,null,null,null,null,null,null,null,null,null,null,null,null,null,null,null,null,null,null,null,null,null,null,null,null,null,null,null,null,null,null,null,null,null,null,null,null,null,null,null,null,null,null,null,null,null,null,null,null,null,null,null,null,null,null,null,null,null,null,null,null,null,null,null,null,null,null,null,null,null,null,null,null,null,null,null,null,null,null,null,null,null,null,null,null,null,null,null,null,null,null,null,null,null,null,null,null,null,null,null,null,null,null,null,null,null,null,null,null,null,null,null,null,null,null,null,null,null,null,null,null,null,null,null,null,null,null,null,null,null,null,null,null,null,null,null,null,null,null,null,null,null,null,null,null,null,null,null,null,null,null,null,null,null,null,null,null,null,null,null,null,null,null,null,null,null,null,null,null,null,null,null,null,null,null,null,null,null,null,null,null,null,null,null,null,null,null,null,null,null,null,null,null,null,null,null,null,null,null,null,null,null,null,null,null,0.75]
[null,null,null,null,null,null,null,null,null,null,null,null,null,null,null,null,null,null,null,null,null,null,null,null,null,null,null,null,null,null,null,null,null,null,null,null,null,null,null,null,null,null,null,null,null,null,null,null,null,null,null,null,null,null,null,null,null,null,null,null,null,null,null,null,null,null,null,null,null,null,null,null,null,null,null,null,null,null,null,null,null,null,null,null,null,null,null,null,null,null,null,null,null,null,null,null,null,null,null,null,null,null,null,null,null,null,null,null,null,null,null,null,null,null,null,null,null,null,null,null,null,null,null,null,null,null,null,null,null,null,null,null,null,null,null,null,null,null,null,null,null,null,null,null,null,null,null,null,null,null,null,null,null,null,null,null,null,null,null,null,null,null,null,null,null,null,null,null,null,null,null,null,null,null,null,null,null,null,null,null,null,null,null,null,null,null,null,null,null,null,null,null,null,null,null,null,null,null,null,null,null,null,null,null,null,null,null,null,null,null,null,null,null,null,null,null,null,null,null,null,null,null,null,null,null,null,null,null,null,null,null,null,null,null,null,null,null,null,null,null,null,null,null,null,null,null,null,null,null,null,null,null,null,null,null,null,null,null,null,null,null,null,null,null,null,null,null,null,null,null,null,null,null,null,null,null,null,null,null,null,null,null,null,null,null,null,null,null,null,null,null,null,null,null,null,null,null,null,null,null,null,null,null,null,null,null,null,null,null,null,null,null,null,null,null,null,null,null,null,null,null,null,null,null,null,null,null,null,null,null,null,null,null,null,null,null,null,null,null,null,null,null,null,null,null,null,null,null,null,null,null,null,null,null,null,null,null,null,null,null,null,null,null,null,null,null,null,null,null,null,null,null,null,null,null,null,null,null,null,null,null,null,null,null,null,null,null,null,null,null,null,null,null,null,null,null,null,null,null,null,null,null,null,null,null,null,null,null,null,null,null,null,null,null,null,null,null,null,null,null,null,null,null,null,null,null,null,null,null,null,null,null,null,null,null,null,null,null,null,null,null,null,null,null,null,null,null,null,null,null,null,null,null,null,null,null,null,null,null,null,null,null,null,null,null,null,null,null,null,null,null,null,null,null,null,null,null,null,null,null,null,null,null,null,null,null,null,null,null,null,null,null,null,null,null,null,null,null,null,null,null,null,null,null,null,null,null,null,null,null,null,null,null,null,null,null,null,null,null,null,null,null,null,null,null,null,null,null,null,null,null,null,null,null,null,null,null,null,null,null,null,null,null,null,null,null,null,null,null,null,null,null,null,null,null,null,null,null,null,null,null,null,null,null,null,null,null,null,null,null,null,null,null,null,null,null,null,null,null,null,null,null,null,null,null,null,null,null,null,null,null,null,null,null,null,null,null,null,null,null,null,null,null,null,null,null,null,null,null,null,null,null,null,null,null,null,null,null,null,null,null,null,null,null,null,null,null,null,null,null,null,null,null,null,null,null,null,null,null,null,null,null,null,null,null,null,null,null,null,null,null,null,null,null,null,null,null,null,null,null,null,null,null,null,null,null,null,null,null,null,null,null,null,null,null,null,null,null,null,null,null,null,null,null,null,null,null,null,null,null,null,null,null,null,null,null,null,null,null,null,null,null,null,null,null,null,null,1]
[null,null,null,null,null,null,null,null,null,null,null,null,null,null,null,null,null,null,null,null,null,null,null,null,null,null,null,null,null,null,null,null,null,null,null,null,null,null,null,null,null,null,null,null,null,null,null,null,null,null,null,null,null,null,null,null,null,null,null,null,null,null,null,null,null,null,null,null,null,null,null,null,null,null,null,null,null,null,null,null,null,null,null,null,null,null,null,null,null,null,null,null,null,null,null,null,null,null,null,null,null,null,null,null,null,null,null,null,null,null,null,null,null,null,null,null,null,null,null,null,null,null,null,null,null,null,null,null,null,null,null,null,null,null,null,null,null,null,null,null,null,null,null,null,null,null,null,null,null,null,null,null,null,null,null,null,null,null,null,null,null,null,null,null,null,null,null,null,null,null,null,null,null,null,null,null,null,null,null,null,null,null,null,null,null,null,null,null,null,null,null,null,null,null,null,null,null,null,null,null,null,null,null,null,null,null,null,null,null,null,null,null,null,null,null,null,null,null,null,null,null,null,null,null,null,null,null,null,null,null,null,null,null,null,null,null,null,null,null,null,null,null,null,null,null,null,null,null,null,null,null,null,null,null,null,null,null,null,null,null,null,null,null,null,null,null,null,null,null,null,null,null,null,null,null,null,null,null,null,null,null,null,null,null,null,null,null,null,null,null,null,null,null,null,null,null,null,null,null,null,null,null,null,null,null,null,null,null,null,null,null,null,null,null,null,null,null,null,null,null,null,null,null,null,null,null,null,null,null,null,null,null,null,null,null,null,null,null,null,null,null,null,null,null,null,null,null,null,null,null,null,null,null,null,null,null,null,null,null,null,null,null,null,null,null,null,null,null,null,null,null,null,null,null,null,null,null,null,null,null,null,null,null,null,null,null,null,null,null,null,null,null,null,null,null,null,null,null,null,null,null,null,null,null,null,null,null,null,null,null,null,null,null,null,null,null,null,null,null,null,null,null,null,null,null,null,null,null,null,null,null,null,null,null,null,null,null,null,null,null,null,null,null,null,null,null,null,null,null,null,null,null,null,null,null,null,null,null,null,null,null,null,null,null,null,null,null,null,null,null,null,null,null,null,null,null,null,null,null,null,null,null,null,null,null,null,null,null,null,null,null,null,null,null,null,null,null,null,null,null,null,null,null,null,null,null,null,null,null,null,null,null,null,null,null,null,null,null,null,null,null,null,null,null,null,null,null,null,null,null,null,null,null,null,null,null,null,null,null,null,null,null,null,null,null,null,null,null,null,null,null,null,null,null,null,null,null,null,null,null,null,null,null,null,null,null,null,null,null,null,null,null,null,null,null,null,null,null,null,null,null,null,null,null,null,null,null,null,null,null,null,null,null,null,null,null,null,null,null,null,null,null,null,null,null,null,null,null,null,null,null,null,null,null,null,null,null,null,null,null,null,null,null,null,null,null,null,null,null,null,null,null,null,null,null,null,null,null,null,null,null,null,null,null,null,null,null,null,null,null,null,null,null,null,null,null,null,null,null,null,null,null,null,null,null,null,null,null,null,null,null,null,null,null,null,null,null,null,null,null,null,null,null,null,null,null,null,null,null,null,null,null,null,null,null,null,null,null,null,null,null,null,null,null,null,null,null,1.25]
[null,null,null,null,null,null,null,null,null,null,null,null,null,null,null,null,null,null,null,null,null,null,null,null,null,null,null,null,null,null,null,null,null,null,null,null,null,null,null,null,null,null,null,null,null,null,null,null,null,null,null,null,null,null,null,null,null,null,null,null,null,null,null,null,null,null,null,null,null,null,null,null,null,null,null,null,null,null,null,null,null,null,null,null,null,null,null,null,null,null,null,null,null,null,null,null,null,null,null,null,null,null,null,null,null,null,null,null,null,null,null,null,null,null,null,null,null,null,null,null,null,null,null,null,null,null,null,null,null,null,null,null,null,null,null,null,null,null,null,null,null,null,null,null,null,null,null,null,null,null,null,null,null,null,null,null,null,null,null,null,null,null,null,null,null,null,null,null,null,null,null,null,null,null,null,null,null,null,null,null,null,null,null,null,null,null,null,null,null,null,null,null,null,null,null,null,null,null,null,null,null,null,null,null,null,null,null,null,null,null,null,null,null,null,null,null,null,null,null,null,null,null,null,null,null,null,null,null,null,null,null,null,null,null,null,null,null,null,null,null,null,null,null,null,null,null,null,null,null,null,null,null,null,null,null,null,null,null,null,null,null,null,null,null,null,null,null,null,null,null,null,null,null,null,null,null,null,null,null,null,null,null,null,null,null,null,null,null,null,null,null,null,null,null,null,null,null,null,null,null,null,null,null,null,null,null,null,null,null,null,null,null,null,null,null,null,null,null,null,null,null,null,null,null,null,null,null,null,null,null,null,null,null,null,null,null,null,null,null,null,null,null,null,null,null,null,null,null,null,null,null,null,null,null,null,null,null,null,null,null,null,null,null,null,null,null,null,null,null,null,null,null,null,null,null,null,null,null,null,null,null,null,null,null,null,null,null,null,null,null,null,null,null,null,null,null,null,null,null,null,null,null,null,null,null,null,null,null,null,null,null,null,null,null,null,null,null,null,null,null,null,null,null,null,null,null,null,null,null,null,null,null,null,null,null,null,null,null,null,null,null,null,null,null,null,null,null,null,null,null,null,null,null,null,null,null,null,null,null,null,null,null,null,null,null,null,null,null,null,null,null,null,null,null,null,null,null,null,null,null,null,null,null,null,null,null,null,null,null,null,null,null,null,null,null,null,null,null,null,null,null,null,null,null,null,null,null,null,null,null,null,null,null,null,null,null,null,null,null,null,null,null,null,null,null,null,null,null,null,null,null,null,null,null,null,null,null,null,null,null,null,null,null,null,null,null,null,null,null,null,null,null,null,null,null,null,null,null,null,null,null,null,null,null,null,null,null,null,null,null,null,null,null,null,null,null,null,null,null,null,null,null,null,null,null,null,null,null,null,null,null,null,null,null,null,null,null,null,null,null,null,null,null,null,null,null,null,null,null,null,null,null,null,null,null,null,null,null,null,null,null,null,null,null,null,null,null,null,null,null,null,null,null,null,null,null,null,null,null,null,null,null,null,null,null,null,null,null,null,null,null,null,null,null,null,null,null,null,null,null,null,null,null,null,null,null,null,null,null,null,null,null,null,null,null,null,null,null,null,null,null,null,null,null,null,null,null,null,null,null,null,null,null,null,null,null,null,null,null,null,null,null,null,null,null,null,null,1.5]
[null,null,null,null,null,null,null,null,null,null,null,null,null,null,null,null,null,null,null,null,null,null,null,null,null,null,null,null,null,null,null,null,null,null,null,null,null,null,null,null,null,null,null,null,null,null,null,null,null,null,null,null,null,null,null,null,null,null,null,null,null,null,null,null,null,null,null,null,null,null,null,null,null,null,null,null,null,null,null,null,null,null,null,null,null,null,null,null,null,null,null,null,null,null,null,null,null,null,null,null,null,null,null,null,null,null,null,null,null,null,null,null,null,null,null,null,null,null,null,null,null,null,null,null,null,null,null,null,null,null,null,null,null,null,null,null,null,null,null,null,null,null,null,null,null,null,null,null,null,null,null,null,null,null,null,null,null,null,null,null,null,null,null,null,null,null,null,null,null,null,null,null,null,null,null,null,null,null,null,null,null,null,null,null,null,null,null,null,null,null,null,null,null,null,null,null,null,null,null,null,null,null,null,null,null,null,null,null,null,null,null,null,null,null,null,null,null,null,null,null,null,null,null,null,null,null,null,null,null,null,null,null,null,null,null,null,null,null,null,null,null,null,null,null,null,null,null,null,null,null,null,null,null,null,null,null,null,null,null,null,null,null,null,null,null,null,null,null,null,null,null,null,null,null,null,null,null,null,null,null,null,null,null,null,null,null,null,null,null,null,null,null,null,null,null,null,null,null,null,null,null,null,null,null,null,null,null,null,null,null,null,null,null,null,null,null,null,null,null,null,null,null,null,null,null,null,null,null,null,null,null,null,null,null,null,null,null,null,null,null,null,null,null,null,null,null,null,null,null,null,null,null,null,null,null,null,null,null,null,null,null,null,null,null,null,null,null,null,null,null,null,null,null,null,null,null,null,null,null,null,null,null,null,null,null,null,null,null,null,null,null,null,null,null,null,null,null,null,null,null,null,null,null,null,null,null,null,null,null,null,null,null,null,null,null,null,null,null,null,null,null,null,null,null,null,null,null,null,null,null,null,null,null,null,null,null,null,null,null,null,null,null,null,null,null,null,null,null,null,null,null,null,null,null,null,null,null,null,null,null,null,null,null,null,null,null,null,null,null,null,null,null,null,null,null,null,null,null,null,null,null,null,null,null,null,null,null,null,null,null,null,null,null,null,null,null,null,null,null,null,null,null,null,null,null,null,null,null,null,null,null,null,null,null,null,null,null,null,null,null,null,null,null,null,null,null,null,null,null,null,null,null,null,null,null,null,null,null,null,null,null,null,null,null,null,null,null,null,null,null,null,null,null,null,null,null,null,null,null,null,null,null,null,null,null,null,null,null,null,null,null,null,null,null,null,null,null,null,null,null,null,null,null,null,null,null,null,null,null,null,null,null,null,null,null,null,null,null,null,null,null,null,null,null,null,null,null,null,null,null,null,null,null,null,null,null,null,null,null,null,null,null,null,null,null,null,null,null,null,null,null,null,null,null,null,null,null,null,null,null,null,null,null,null,null,null,null,null,null,null,null,null,null,null,null,null,null,null,null,null,null,null,null,null,null,null,null,null,null,null,null,null,null,null,null,null,null,null,null,null,null,null,null,null,null,null,null,null,null,null,null,null,null,null,null,null,null,null,null,null,null,null,null,null,null,null,null,1.75]
[null,null,null,null,null,null,null,null,null,null,null,null,null,null,null,null,null,null,null,null,null,null,null,null,null,null,null,null,null,null,null,null,null,null,null,null,null,null,null,null,null,null,null,null,null,null,null,null,null,null,null,null,null,null,null,null,null,null,null,null,null,null,null,null,null,null,null,null,null,null,null,null,null,null,null,null,null,null,null,null,null,null,null,null,null,null,null,null,null,null,null,null,null,null,null,null,null,null,null,null,null,null,null,null,null,null,null,null,null,null,null,null,null,null,null,null,null,null,null,null,null,null,null,null,null,null,null,null,null,null,null,null,null,null,null,null,null,null,null,null,null,null,null,null,null,null,null,null,null,null,null,null,null,null,null,null,null,null,null,null,null,null,null,null,null,null,null,null,null,null,null,null,null,null,null,null,null,null,null,null,null,null,null,null,null,null,null,null,null,null,null,null,null,null,null,null,null,null,null,null,null,null,null,null,null,null,null,null,null,null,null,null,null,null,null,null,null,null,null,null,null,null,null,null,null,null,null,null,null,null,null,null,null,null,null,null,null,null,null,null,null,null,null,null,null,null,null,null,null,null,null,null,null,null,null,null,null,null,null,null,null,null,null,null,null,null,null,null,null,null,null,null,null,null,null,null,null,null,null,null,null,null,null,null,null,null,null,null,null,null,null,null,null,null,null,null,null,null,null,null,null,null,null,null,null,null,null,null,null,null,null,null,null,null,null,null,null,null,null,null,null,null,null,null,null,null,null,null,null,null,null,null,null,null,null,null,null,null,null,null,null,null,null,null,null,null,null,null,null,null,null,null,null,null,null,null,null,null,null,null,null,null,null,null,null,null,null,null,null,null,null,null,null,null,null,null,null,null,null,null,null,null,null,null,null,null,null,null,null,null,null,null,null,null,null,null,null,null,null,null,null,null,null,null,null,null,null,null,null,null,null,null,null,null,null,null,null,null,null,null,null,null,null,null,null,null,null,null,null,null,null,null,null,null,null,null,null,null,null,null,null,null,null,null,null,null,null,null,null,null,null,null,null,null,null,null,null,null,null,null,null,null,null,null,null,null,null,null,null,null,null,null,null,null,null,null,null,null,null,null,null,null,null,null,null,null,null,null,null,null,null,null,null,null,null,null,null,null,null,null,null,null,null,null,null,null,null,null,null,null,null,null,null,null,null,null,null,null,null,null,null,null,null,null,null,null,null,null,null,null,null,null,null,null,null,null,null,null,null,null,null,null,null,null,null,null,null,null,null,null,null,null,null,null,null,null,null,null,null,null,null,null,null,null,null,null,null,null,null,null,null,null,null,null,null,null,null,null,null,null,null,null,null,null,null,null,null,null,null,null,null,null,null,null,null,null,null,null,null,null,null,null,null,null,null,null,null,null,null,null,null,null,null,null,null,null,null,null,null,null,null,null,null,null,null,null,null,null,null,null,null,null,null,null,null,null,null,null,null,null,null,null,null,null,null,null,null,null,null,null,null,null,null,null,null,null,null,null,null,null,null,null,null,null,null,null,null,null,null,null,null,null,null,null,null,null,null,null,null,null,null,null,null,null,null,null,null,null,null,null,null,null,null,null,null,null,null,null,null,null,null,null,null,null,null,null,null,2]
[null,null,null,null,null,null,null,null,null,null,null,null,null,null,null,null,null,null,null,null,null,null,null,null,null,null,null,null,null,null,null,null,null,null,null,null,null,null,null,null,null,null,null,null,null,null,null,null,null,null,null,null,null,null,null,null,null,null,null,null,null,null,null,null,null,null,null,null,null,null,null,null,null,null,null,null,null,null,null,null,null,null,null,null,null,null,null,null,null,null,null,null,null,null,null,null,null,null,null,null,null,null,null,null,null,null,null,null,null,null,null,null,null,null,null,null,null,null,null,null,null,null,null,null,null,null,null,null,null,null,null,null,null,null,null,null,null,null,null,null,null,null,null,null,null,null,null,null,null,null,null,null,null,null,null,null,null,null,null,null,null,null,null,null,null,null,null,null,null,null,null,null,null,null,null,null,null,null,null,null,null,null,null,null,null,null,null,null,null,null,null,null,null,null,null,null,null,null,null,null,null,null,null,null,null,null,null,null,null,null,null,null,null,null,null,null,null,null,null,null,null,null,null,null,null,null,null,null,null,null,null,null,null,null,null,null,null,null,null,null,null,null,null,null,null,null,null,null,null,null,null,null,null,null,null,null,null,null,null,null,null,null,null,null,null,null,null,null,null,null,null,null,null,null,null,null,null,null,null,null,null,null,null,null,null,null,null,null,null,null,null,null,null,null,null,null,null,null,null,null,null,null,null,null,null,null,null,null,null,null,null,null,null,null,null,null,null,null,null,null,null,null,null,null,null,null,null,null,null,null,null,null,null,null,null,null,null,null,null,null,null,null,null,null,null,null,null,null,null,null,null,null,null,null,null,null,null,null,null,null,null,null,null,null,null,null,null,null,null,null,null,null,null,null,null,null,null,null,null,null,null,null,null,null,null,null,null,null,null,null,null,null,null,null,null,null,null,null,null,null,null,null,null,null,null,null,null,null,null,null,null,null,null,null,null,null,null,null,null,null,null,null,null,null,null,null,null,null,null,null,null,null,null,null,null,null,null,null,null,null,null,null,null,null,null,null,null,null,null,null,null,null,null,null,null,null,null,null,null,null,null,null,null,null,null,null,null,null,null,null,null,null,null,null,null,null,null,null,null,null,null,null,null,null,null,null,null,null,null,null,null,null,null,null,null,null,null,null,null,null,null,null,null,null,null,null,null,null,null,null,null,null,null,null,null,null,null,null,null,null,null,null,null,null,null,null,null,null,null,null,null,null,null,null,null,null,null,null,null,null,null,null,null,null,null,null,null,null,null,null,null,null,null,null,null,null,null,null,null,null,null,null,null,null,null,null,null,null,null,null,null,null,null,null,null,null,null,null,null,null,null,null,null,null,null,null,null,null,null,null,null,null,null,null,null,null,null,null,null,null,null,null,null,null,null,null,null,null,null,null,null,null,null,null,null,null,null,null,null,null,null,null,null,null,null,null,null,null,null,null,null,null,null,null,null,null,null,null,null,null,null,null,null,null,null,null,null,null,null,null,null,null,null,null,null,null,null,null,null,null,null,null,null,null,null,null,null,null,null,null,null,null,null,null,null,null,null,null,null,null,null,null,null,null,null,null,null,null,null,null,null,null,null,null,null,null,null,null,null,null,null,null,null,null,null,null,null,2.25]
[null,null,null,null,null,null,null,null,null,null,null,null,null,null,null,null,null,null,null,null,null,null,null,null,null,null,null,null,null,null,null,null,null,null,null,null,null,null,null,null,null,null,null,null,null,null,null,null,null,null,null,null,null,null,null,null,null,null,null,null,null,null,null,null,null,null,null,null,null,null,null,null,null,null,null,null,null,null,null,null,null,null,null,null,null,null,null,null,null,null,null,null,null,null,null,null,null,null,null,null,null,null,null,null,null,null,null,null,null,null,null,null,null,null,null,null,null,null,null,null,null,null,null,null,null,null,null,null,null,null,null,null,null,null,null,null,null,null,null,null,null,null,null,null,null,null,null,null,null,null,null,null,null,null,null,null,null,null,null,null,null,null,null,null,null,null,null,null,null,null,null,null,null,null,null,null,null,null,null,null,null,null,null,null,null,null,null,null,null,null,null,null,null,null,null,null,null,null,null,null,null,null,null,null,null,null,null,null,null,null,null,null,null,null,null,null,null,null,null,null,null,null,null,null,null,null,null,null,null,null,null,null,null,null,null,null,null,null,null,null,null,null,null,null,null,null,null,null,null,null,null,null,null,null,null,null,null,null,null,null,null,null,null,null,null,null,null,null,null,null,null,null,null,null,null,null,null,null,null,null,null,null,null,null,null,null,null,null,null,null,null,null,null,null,null,null,null,null,null,null,null,null,null,null,null,null,null,null,null,null,null,null,null,null,null,null,null,null,null,null,null,null,null,null,null,null,null,null,null,null,null,null,null,null,null,null,null,null,null,null,null,null,null,null,null,null,null,null,null,null,null,null,null,null,null,null,null,null,null,null,null,null,null,null,null,null,null,null,null,null,null,null,null,null,null,null,null,null,null,null,null,null,null,null,null,null,null,null,null,null,null,null,null,null,null,null,null,null,null,null,null,null,null,null,null,null,null,null,null,null,null,null,null,null,null,null,null,null,null,null,null,null,null,null,null,null,null,null,null,null,null,null,null,null,null,null,null,null,null,null,null,null,null,null,null,null,null,null,null,null,null,null,null,null,null,null,null,null,null,null,null,null,null,null,null,null,null,null,null,null,null,null,null,null,null,null,null,null,null,null,null,null,null,null,null,null,null,null,null,null,null,null,null,null,null,null,null,null,null,null,null,null,null,null,null,null,null,null,null,null,null,null,null,null,null,null,null,null,null,null,null,null,null,null,null,null,null,null,null,null,null,null,null,null,null,null,null,null,null,null,null,null,null,null,null,null,null,null,null,null,null,null,null,null,null,null,null,null,null,null,null,null,null,null,null,null,null,null,null,null,null,null,null,null,null,null,null,null,null,null,null,null,null,null,null,null,null,null,null,null,null,null,null,null,null,null,null,null,null,null,null,null,null,null,null,null,null,null,null,null,null,null,null,null,null,null,null,null,null,null,null,null,null,null,null,null,null,null,null,null,null,null,null,null,null,null,null,null,null,null,null,null,null,null,null,null,null,null,null,null,null,null,null,null,null,null,null,null,null,null,null,null,null,null,null,null,null,null,null,null,null,null,null,null,null,null,null,null,null,null,null,null,null,null,null,null,null,null,null,null,null,null,null,null,null,null,null,null,null,null,null,null,null,null,null,null,null,2.5]
[null,null,null,null,null,null,null,null,null,null,null,null,null,null,null,null,null,null,null,null,null,null,null,null,null,null,null,null,null,null,null,null,null,null,null,null,null,null,null,null,null,null,null,null,null,null,null,null,null,null,null,null,null,null,null,null,null,null,null,null,null,null,null,null,null,null,null,null,null,null,null,null,null,null,null,null,null,null,null,null,null,null,null,null,null,null,null,null,null,null,null,null,null,null,null,null,null,null,null,null,null,null,null,null,null,null,null,null,null,null,null,null,null,null,null,null,null,null,null,null,null,null,null,null,null,null,null,null,null,null,null,null,null,null,null,null,null,null,null,null,null,null,null,null,null,null,null,null,null,null,null,null,null,null,null,null,null,null,null,null,null,null,null,null,null,null,null,null,null,null,null,null,null,null,null,null,null,null,null,null,null,null,null,null,null,null,null,null,null,null,null,null,null,null,null,null,null,null,null,null,null,null,null,null,null,null,null,null,null,null,null,null,null,null,null,null,null,null,null,null,null,null,null,null,null,null,null,null,null,null,null,null,null,null,null,null,null,null,null,null,null,null,null,null,null,null,null,null,null,null,null,null,null,null,null,null,null,null,null,null,null,null,null,null,null,null,null,null,null,null,null,null,null,null,null,null,null,null,null,null,null,null,null,null,null,null,null,null,null,null,null,null,null,null,null,null,null,null,null,null,null,null,null,null,null,null,null,null,null,null,null,null,null,null,null,null,null,null,null,null,null,null,null,null,null,null,null,null,null,null,null,null,null,null,null,null,null,null,null,null,null,null,null,null,null,null,null,null,null,null,null,null,null,null,null,null,null,null,null,null,null,null,null,null,null,null,null,null,null,null,null,null,null,null,null,null,null,null,null,null,null,null,null,null,null,null,null,null,null,null,null,null,null,null,null,null,null,null,null,null,null,null,null,null,null,null,null,null,null,null,null,null,null,null,null,null,null,null,null,null,null,null,null,null,null,null,null,null,null,null,null,null,null,null,null,null,null,null,null,null,null,null,null,null,null,null,null,null,null,null,null,null,null,null,null,null,null,null,null,null,null,null,null,null,null,null,null,null,null,null,null,null,null,null,null,null,null,null,null,null,null,null,null,null,null,null,null,null,null,null,null,null,null,null,null,null,null,null,null,null,null,null,null,null,null,null,null,null,null,null,null,null,null,null,null,null,null,null,null,null,null,null,null,null,null,null,null,null,null,null,null,null,null,null,null,null,null,null,null,null,null,null,null,null,null,null,null,null,null,null,null,null,null,null,null,null,null,null,null,null,null,null,null,null,null,null,null,null,null,null,null,null,null,null,null,null,null,null,null,null,null,null,null,null,null,null,null,null,null,null,null,null,null,null,null,null,null,null,null,null,null,null,null,null,null,null,null,null,null,null,null,null,null,null,null,null,null,null,null,null,null,null,null,null,null,null,null,null,null,null,null,null,null,null,null,null,null,null,null,null,null,null,null,null,null,null,null,null,null,null,null,null,null,null,null,null,null,null,null,null,null,null,null,null,null,null,null,null,null,null,null,null,null,null,null,null,null,null,null,null,null,null,null,null,null,null,null,null,null,null,null,null,null,null,null,null,null,null,null,null,null,null,null,null,null,null,null,2.75]
[null,null,null,null,null,null,null,null,null,null,null,null,null,null,null,null,null,null,null,null,null,null,null,null,null,null,null,null,null,null,null,null,null,null,null,null,null,null,null,null,null,null,null,null,null,null,null,null,null,null,null,null,null,null,null,null,null,null,null,null,null,null,null,null,null,null,null,null,null,null,null,null,null,null,null,null,null,null,null,null,null,null,null,null,null,null,null,null,null,null,null,null,null,null,null,null,null,null,null,null,null,null,null,null,null,null,null,null,null,null,null,null,null,null,null,null,null,null,null,null,null,null,null,null,null,null,null,null,null,null,null,null,null,null,null,null,null,null,null,null,null,null,null,null,null,null,null,null,null,null,null,null,null,null,null,null,null,null,null,null,null,null,null,null,null,null,null,null,null,null,null,null,null,null,null,null,null,null,null,null,null,null,null,null,null,null,null,null,null,null,null,null,null,null,null,null,null,null,null,null,null,null,null,null,null,null,null,null,null,null,null,null,null,null,null,null,null,null,null,null,null,null,null,null,null,null,null,null,null,null,null,null,null,null,null,null,null,null,null,null,null,null,null,null,null,null,null,null,null,null,null,null,null,null,null,null,null,null,null,null,null,null,null,null,null,null,null,null,null,null,null,null,null,null,null,null,null,null,null,null,null,null,null,null,null,null,null,null,null,null,null,null,null,null,null,null,null,null,null,null,null,null,null,null,null,null,null,null,null,null,null,null,null,null,null,null,null,null,null,null,null,null,null,null,null,null,null,null,null,null,null,null,null,null,null,null,null,null,null,null,null,null,null,null,null,null,null,null,null,null,null,null,null,null,null,null,null,null,null,null,null,null,null,null,null,null,null,null,null,null,null,null,null,null,null,null,null,null,null,null,null,null,null,null,null,null,null,null,null,null,null,null,null,null,null,null,null,null,null,null,null,null,null,null,null,null,null,null,null,null,null,null,null,null,null,null,null,null,null,null,null,null,null,null,null,null,null,null,null,null,null,null,null,null,null,null,null,null,null,null,null,null,null,null,null,null,null,null,null,null,null,null,null,null,null,null,null,null,null,null,null,null,null,null,null,null,null,null,null,null,null,null,null,null,null,null,null,null,null,null,null,null,null,null,null,null,null,null,null,null,null,null,null,null,null,null,null,null,null,null,null,null,null,null,null,null,null,null,null,null,null,null,null,null,null,null,null,null,null,null,null,null,null,null,null,null,null,null,null,null,null,null,null,null,null,null,null,null,null,null,null,null,null,null,null,null,null,null,null,null,null,null,null,null,null,null,null,null,null,null,null,null,null,null,null,null,null,null,null,null,null,null,null,null,null,null,null,null,null,null,null,null,null,null,null,null,null,null,null,null,null,null,null,null,null,null,null,null,null,null,null,null,null,null,null,null,null,null,null,null,null,null,null,null,null,null,null,null,null,null,null,null,null,null,null,null,null,null,null,null,null,null,null,null,null,null,null,null,null,null,null,null,null,null,null,null,null,null,null,null,null,null,null,null,null,null,null,null,null,null,null,null,null,null,null,null,null,null,null,null,null,null,null,null,null,null,null,null,null,null,null,null,null,null,null,null,null,null,null,null,null,null,null,null,null,null,null,null,null,null,null,null,null,null,null,null,null,3]
[null,null,null,null,null,null,null,null,null,null,null,null,null,null,null,null,null,null,null,null,null,null,null,null,null,null,null,null,null,null,null,null,null,null,null,null,null,null,null,null,null,null,null,null,null,null,null,null,null,null,null,null,null,null,null,null,null,null,null,null,null,null,null,null,null,null,null,null,null,null,null,null,null,null,null,null,null,null,null,null,null,null,null,null,null,null,null,null,null,null,null,null,null,null,null,null,null,null,null,null,null,null,null,null,null,null,null,null,null,null,null,null,null,null,null,null,null,null,null,null,null,null,null,null,null,null,null,null,null,null,null,null,null,null,null,null,null,null,null,null,null,null,null,null,null,null,null,null,null,null,null,null,null,null,null,null,null,null,null,null,null,null,null,null,null,null,null,null,null,null,null,null,null,null,null,null,null,null,null,null,null,null,null,null,null,null,null,null,null,null,null,null,null,null,null,null,null,null,null,null,null,null,null,null,null,null,null,null,null,null,null,null,null,null,null,null,null,null,null,null,null,null,null,null,null,null,null,null,null,null,null,null,null,null,null,null,null,null,null,null,null,null,null,null,null,null,null,null,null,null,null,null,null,null,null,null,null,null,null,null,null,null,null,null,null,null,null,null,null,null,null,null,null,null,null,null,null,null,null,null,null,null,null,null,null,null,null,null,null,null,null,null,null,null,null,null,null,null,null,null,null,null,null,null,null,null,null,null,null,null,null,null,null,null,null,null,null,null,null,null,null,null,null,null,null,null,null,null,null,null,null,null,null,null,null,null,null,null,null,null,null,null,null,null,null,null,null,null,null,null,null,null,null,null,null,null,null,null,null,null,null,null,null,null,null,null,null,null,null,null,null,null,null,null,null,null,null,null,null,null,null,null,null,null,null,null,null,null,null,null,null,null,null,null,null,null,null,null,null,null,null,null,null,null,null,null,null,null,null,null,null,null,null,null,null,null,null,null,null,null,null,null,null,null,null,null,null,null,null,null,null,null,null,null,null,null,null,null,null,null,null,null,null,null,null,null,null,null,null,null,null,null,null,null,null,null,null,null,null,null,null,null,null,null,null,null,null,null,null,null,null,null,null,null,null,null,null,null,null,null,null,null,null,null,null,null,null,null,null,null,null,null,null,null,null,null,null,null,null,null,null,null,null,null,null,null,null,null,null,null,null,null,null,null,null,null,null,null,null,null,null,null,null,null,null,null,null,null,null,null,null,null,null,null,null,null,null,null,null,null,null,null,null,null,null,null,null,null,null,null,null,null,null,null,null,null,null,null,null,null,null,null,null,null,null,null,null,null,null,null,null,null,null,null,null,null,null,null,null,null,null,null,null,null,null,null,null,null,null,null,null,null,null,null,null,null,null,null,null,null,null,null,null,null,null,null,null,null,null,null,null,null,null,null,null,null,null,null,null,null,null,null,null,null,null,null,null,null,null,null,null,null,null,null,null,null,null,null,null,null,null,null,null,null,null,null,null,null,null,null,null,null,null,null,null,null,null,null,null,null,null,null,null,null,null,null,null,null,null,null,null,null,null,null,null,null,null,null,null,null,null,null,null,null,null,null,null,null,null,null,null,null,null,null,null,null,null,null,null,null,null,null,null,null,null,null,null,3.25]
[null,null,null,null,null,null,null,null,null,null,null,null,null,null,null,null,null,null,null,null,null,null,null,null,null,null,null,null,null,null,null,null,null,null,null,null,null,null,null,null,null,null,null,null,null,null,null,null,null,null,null,null,null,null,null,null,null,null,null,null,null,null,null,null,null,null,null,null,null,null,null,null,null,null,null,null,null,null,null,null,null,null,null,null,null,null,null,null,null,null,null,null,null,null,null,null,null,null,null,null,null,null,null,null,null,null,null,null,null,null,null,null,null,null,null,null,null,null,null,null,null,null,null,null,null,null,null,null,null,null,null,null,null,null,null,null,null,null,null,null,null,null,null,null,null,null,null,null,null,null,null,null,null,null,null,null,null,null,null,null,null,null,null,null,null,null,null,null,null,null,null,null,null,null,null,null,null,null,null,null,null,null,null,null,null,null,null,null,null,null,null,null,null,null,null,null,null,null,null,null,null,null,null,null,null,null,null,null,null,null,null,null,null,null,null,null,null,null,null,null,null,null,null,null,null,null,null,null,null,null,null,null,null,null,null,null,null,null,null,null,null,null,null,null,null,null,null,null,null,null,null,null,null,null,null,null,null,null,null,null,null,null,null,null,null,null,null,null,null,null,null,null,null,null,null,null,null,null,null,null,null,null,null,null,null,null,null,null,null,null,null,null,null,null,null,null,null,null,null,null,null,null,null,null,null,null,null,null,null,null,null,null,null,null,null,null,null,null,null,null,null,null,null,null,null,null,null,null,null,null,null,null,null,null,null,null,null,null,null,null,null,null,null,null,null,null,null,null,null,null,null,null,null,null,null,null,null,null,null,null,null,null,null,null,null,null,null,null,null,null,null,null,null,null,null,null,null,null,null,null,null,null,null,null,null,null,null,null,null,null,null,null,null,null,null,null,null,null,null,null,null,null,null,null,null,null,null,null,null,null,null,null,null,null,null,null,null,null,null,null,null,null,null,null,null,null,null,null,null,null,null,null,null,null,null,null,null,null,null,null,null,null,null,null,null,null,null,null,null,null,null,null,null,null,null,null,null,null,null,null,null,null,null,null,null,null,null,null,null,null,null,null,null,null,null,null,null,null,null,null,null,null,null,null,null,null,null,null,null,null,null,null,null,null,null,null,null,null,null,null,null,null,null,null,null,null,null,null,null,null,null,null,null,null,null,null,null,null,null,null,null,null,null,null,null,null,null,null,null,null,null,null,null,null,null,null,null,null,null,null,null,null,null,null,null,null,null,null,null,null,null,null,null,null,null,null,null,null,null,null,null,null,null,null,null,null,null,null,null,null,null,null,null,null,null,null,null,null,null,null,null,null,null,null,null,null,null,null,null,null,null,null,null,null,null,null,null,null,null,null,null,null,null,null,null,null,null,null,null,null,null,null,null,null,null,null,null,null,null,null,null,null,null,null,null,null,null,null,null,null,null,null,null,null,null,null,null,null,null,null,null,null,null,null,null,null,null,null,null,null,null,null,null,null,null,null,null,null,null,null,null,null,null,null,null,null,null,null,null,null,null,null,null,null,null,null,null,null,null,null,null,null,null,null,null,null,null,null,null,null,null,null,null,null,null,null,null,null,null,null,null,null,null,null,null,null,null,3.5]
[null,null,null,null,null,null,null,null,null,null,null,null,null,null,null,null,null,null,null,null,null,null,null,null,null,null,null,null,null,null,null,null,null,null,null,null,null,null,null,null,null,null,null,null,null,null,null,null,null,null,null,null,null,null,null,null,null,null,null,null,null,null,null,null,null,null,null,null,null,null,null,null,null,null,null,null,null,null,null,null,null,null,null,null,null,null,null,null,null,null,null,null,null,null,null,null,null,null,null,null,null,null,null,null,null,null,null,null,null,null,null,null,null,null,null,null,null,null,null,null,null,null,null,null,null,null,null,null,null,null,null,null,null,null,null,null,null,null,null,null,null,null,null,null,null,null,null,null,null,null,null,null,null,null,null,null,null,null,null,null,null,null,null,null,null,null,null,null,null,null,null,null,null,null,null,null,null,null,null,null,null,null,null,null,null,null,null,null,null,null,null,null,null,null,null,null,null,null,null,null,null,null,null,null,null,null,null,null,null,null,null,null,null,null,null,null,null,null,null,null,null,null,null,null,null,null,null,null,null,null,null,null,null,null,null,null,null,null,null,null,null,null,null,null,null,null,null,null,null,null,null,null,null,null,null,null,null,null,null,null,null,null,null,null,null,null,null,null,null,null,null,null,null,null,null,null,null,null,null,null,null,null,null,null,null,null,null,null,null,null,null,null,null,null,null,null,null,null,null,null,null,null,null,null,null,null,null,null,null,null,null,null,null,null,null,null,null,null,null,null,null,null,null,null,null,null,null,null,null,null,null,null,null,null,null,null,null,null,null,null,null,null,null,null,null,null,null,null,null,null,null,null,null,null,null,null,null,null,null,null,null,null,null,null,null,null,null,null,null,null,null,null,null,null,null,null,null,null,null,null,null,null,null,null,null,null,null,null,null,null,null,null,null,null,null,null,null,null,null,null,null,null,null,null,null,null,null,null,null,null,null,null,null,null,null,null,null,null,null,null,null,null,null,null,null,null,null,null,null,null,null,null,null,null,null,null,null,null,null,null,null,null,null,null,null,null,null,null,null,null,null,null,null,null,null,null,null,null,null,null,null,null,null,null,null,null,null,null,null,null,null,null,null,null,null,null,null,null,null,null,null,null,null,null,null,null,null,null,null,null,null,null,null,null,null,null,null,null,null,null,null,null,null,null,null,null,null,null,null,null,null,null,null,null,null,null,null,null,null,null,null,null,null,null,null,null,null,null,null,null,null,null,null,null,null,null,null,null,null,null,null,null,null,null,null,null,null,null,null,null,null,null,null,null,null,null,null,null,null,null,null,null,null,null,null,null,null,null,null,null,null,null,null,null,null,null,null,null,null,null,null,null,null,null,null,null,null,null,null,null,null,null,null,null,null,null,null,null,null,null,null,null,null,null,null,null,null,null,null,null,null,null,null,null,null,null,null,null,null,null,null,null,null,null,null,null,null,null,null,null,null,null,null,null,null,null,null,null,null,null,null,null,null,null,null,null,null,null,null,null,null,null,null,null,null,null,null,null,null,null,null,null,null,null,null,null,null,null,null,null,null,null,null,null,null,null,null,null,null,null,null,null,null,null,null,null,null,null,null,null,null,null,null,null,null,null,null,null,null,null,null,null,null,null,null,null,null,3.75]

{"sheet":"Allison Info","index":19,"n_rows":30,"n_cols":2,"rows_kept":30,"cut":false,"hidden":false,"merged":[[2,2,5,2],[29,1,30,4]]}
[]
[]
[]
[]
[]
[]
[]
[]
[]
[]
[]
[]
[]
[]
[]
[]
[]
[]
[]
[]
[]
[]
[]
[]
[]
[]
[]
[]
[]
[null,"Click on the Cover above to open the Document"]